Workbook

Sheet 2_aciklikli
B2: SABİT MESNETLİ ÇERÇEVE CROSS ( 2 açıklıklı ) (inş.müh. Gürcan BERBEROĞLU tel:0532 366 02 04 www.betoncelik.com )
I3: pas payı d ' = | N3: 0.03 | P3: m | W3: dikkat sadece sarı hücrelere rakam giriniz.
R4: 0.5 | T4: m | AN4: Not : baş ve sonda kirişe oturan mesnet durumunda kirişin kolon yüzü kesme kuvveti dikkate alınır.
T5: m
T6: 0.6
R10: dm4
R12: =T6*R4^3/12*10000 -> 62.5
AD13: m
AD14: 3
O15: =-(P21+T21)*R21 -> -1.609540864 | R15: I =
R17: =(4*R12/AD14)/((4*R12/AD14)+(3*W20/W34)+(4*R26/AD25)+(3*M20/M34)) -> 0.2372423199 | T17: =-(P21+T21)*R17 -> -1.609540864
L19: q = | M19: 10 | O19: KN/m | V19: q = | W19: 10 | Y19: KN/m
L20: I = | M20: =(M41*I43^3/12+I43*M41*(((I43*M41*I43/2+M48*(P44-I43)*((P44-I43)/2+I43))/(M41*I43+(P44-I43)*M48))-I43/2)^2+M48*(P44-I43)^3/12+M48*(P44-I43)*(P44-((I43*M41*I43/2+M48*(P44-I43)*((P44-I43)/2+I43))/(M41*I43+(P44-I43)*M48))-(P44-I43)/2)^2)*10000 -> 127.6666667 | O20: dm4 | Q20: =(3*M20/M34)/((4*R12/AD14)+(3*W20/W34)+(4*R26/AD25)+(3*M20/M34)) -> 0.2832118707 | S20: =(3*W20/W34)/((4*R12/AD14)+(3*W20/W34)+(4*R26/AD25)+(3*M20/M34)) -> 0.2423034894 | V20: I = | W20: =(W41*S43^3/12+S43*W41*(((S43*W41*S43/2+W48*(Z44-S43)*((Z44-S43)/2+S43))/(W41*S43+(Z44-S43)*W48))-S43/2)^2+W48*(Z44-S43)^3/12+W48*(Z44-S43)*(Z44-((S43*W41*S43/2+W48*(Z44-S43)*((Z44-S43)/2+S43))/(W41*S43+(Z44-S43)*W48))-(Z44-S43)/2)^2)*10000 -> 127.6666667 | Y20: dm4
P21: =-M19*M34^2/8 -> -18.528125 | R21: =(4*R26/AD25)/((4*R12/AD14)+(3*W20/W34)+(4*R26/AD25)+(3*M20/M34)) -> 0.2372423199 | T21: =W19*W34^2/8 -> 25.3125
P22: =-(P21+T21)*Q20 -> -1.921415536 | T22: =-(P21+T21)*S20 -> -1.643877736
P23: =SUM(P21:Q22) -> -20.44954054 | T23: =SUM(T21:U22) -> 23.66862226
R24: dm4 | AD24: m
AD25: 3
R26: =T38*R36^3/12*10000 -> 62.5
R29: I =
M34: 3.85 | O34: m | W34: 4.5 | Y34: m
C36: mesnet genişliği= | H36: 0.25 | J36: m | R36: 0.5 | T36: m | W36: mesnet genişliği= | AB36: 0.25 | AD36: m
T37: m
T38: 0.6
M41: 1.2 | O41: m | W41: 1.2 | Y41: m
I43: 0.1 | K43: m | P43: m | S43: 0.1 | U43: m | Z43: m
P44: 0.7 | Z44: 0.7
M48: 0.25 | O48: m | W48: 0.25 | Y48: m
O50: =IF(T17<0,T17/2,"") -> -0.8047704321 | U50: =IF(T17>0,T17/2,"") -> 
F55: moment diyagramı (KNm)
Q58: =IF(P23=0,"",+P23) -> -20.44954054
S59: =IF(T23=0,"",-T23) -> -23.66862226
O61: =IF(T17>0,-T17,"") ->  | U61: =IF(T17<0,-T17,"") -> 1.609540864
O62: =IF(O15<0,O15,"") -> -1.609540864 | U62: =IF(O15>0,O15,"") -> 
L64: =IF(M115=0,"",+M115) -> 9.713992979 | X64: =+W115 -> 14.86140783
O73: =IF(O15>0,-O15/2,"") ->  | U73: =IF(O15<0,-O15/2,"") -> 0.8047704321
O75: =IF(T17<0,(T17+T17/2)/$AD$14,"") -> -0.8047704321 | U75: =IF(T17>0,(T17+T17/2)/$AD$14,"") -> 
F80: kesme kuvveti diyagramı (KN)
H83: =+M107 -> 13.93843103
S84: =+W107 -> 27.75969384
O86: =IF(O75<0,O75,"") -> -0.8047704321 | U86: =IF(U75>0,U75,"") -> 
O87: =IF(O98<0,O98,"") -> -0.8047704321 | U87: =IF(U98>0,U98,"") -> 
Q89: =-M108 -> -24.56156897
AB91: =-W108 -> -17.24030616
J92: x= | K92: =+M114 -> 1.393843103 | M92: m | Y92: x= | Z92: =+W34-W114 -> 1.724030616 | AB92: m
O98: =IF(O15<0,(O15+O15/2)/$AD$25,"") -> -0.8047704321 | U98: =IF(O15>0,(O15+O15/2)/$AD$25,"") -> 
C100: kiriş faydalı yükseklik d = h - d' (m) | I100: =P44-N3 -> 0.67 | S100: =Z44-N3 -> 0.67
I104: yayılı yük = | M104: =+M19 -> 10 | O104: KN/m | S104: yayılı yük = | W104: =+W19 -> 10 | Y104: KN/m
I105: sol moment= | M105: 0 | O105: KNm | S105: sol moment= | W105: =+T23 -> 23.66862226 | Y105: KNm
I106: sağ moment= | M106: =-P23 -> 20.44954054 | O106: KNm | S106: sağ moment= | W106: 0 | Y106: KNm
L107: A= | M107: =(M104*M109*M109/2+M105-M106)/M109 -> 13.93843103 | O107: KN | V107: A= | W107: =(W104*W109*W109/2+W105-W106)/W109 -> 27.75969384 | Y107: KN
L108: B= | M108: =M104*M109-M107 -> 24.56156897 | O108: KN | V108: B= | W108: =W104*W109-W107 -> 17.24030616 | Y108: KN
L109: L= | M109: =+M34 -> 3.85 | O109: m | V109: L= | W109: =+W34 -> 4.5 | Y109: m
I110: sol mes.gen= | M110: =+H36 -> 0.25 | O110: m | S110: sol mes.gen= | W110: =+R36 -> 0.5 | Y110: m
I111: sağ mes.gen= | M111: =+R36 -> 0.5 | O111: m | S111: sağ mes.gen= | W111: =+AB36 -> 0.25 | Y111: m
L112: d= | M112: =+I100 -> 0.67 | O112: m | V112: d= | W112: =+S100 -> 0.67 | Y112: m
L113: h= | M113: =+P44 -> 0.7 | O113: m | V113: h= | W113: =+Z44 -> 0.7 | Y113: m
L114: x= | M114: =((M107*M109)/(M107+M108)) -> 1.393843103 | O114: m | V114: x= | W114: =((W107*W109)/(W107+W108)) -> 2.775969384 | Y114: m
K115: Maç= | M115: =((((M105-M106)/M109+M104*M109*0.5)^2/(2*M104))-M105) -> 9.713992979 | O115: KNm | U115: Maç= | W115: =((((W105-W106)/W109+W104*W109*0.5)^2/(2*W104))-W105) -> 14.86140783 | Y115: KNm
I116: sol mesnet yüzü kesme kuv. = | M116: =(M107-M104*M110/2) -> 12.68843103 | O116: KN | S116: sol mesnet yüzü kesme kuv. = | W116: =(W107-W104*W110/2) -> 25.25969384 | Y116: KN
I117: sol mesnet yüzünden d mesafede kesme kuv. = | M117: =(M107-(M104*(M112+M110/2))) -> 5.98843103 | O117: KN | S117: sol mesnet yüzünden d mesafede kesme kuv. = | W117: =(W107-(W104*(W112+W110/2))) -> 18.55969384 | Y117: KN
I118: sol mesnet yüzünden 2*h mesafede kesme kuv. = | M118: =(M107-(M104*(2*M113+M110/2))) -> -1.31156897 | O118: KN | S118: sol mesnet yüzünden 2*h mesafede kesme kuv. = | W118: =(W107-(W104*(2*W113+W110/2))) -> 11.25969384 | Y118: KN
I119: sol mesnet yüzü moment = | M119: =M105-((M107+M116)/2*M110/2) -> -1.664178879 | O119: KNm | S119: sol mesnet yüzü moment = | W119: =W105-((W107+W116)/2*W110/2) -> 17.0411988 | Y119: KNm
I120: sağ mesnet yüzü kesme kuv. = | M120: =(M108-M104*M111/2) -> 22.06156897 | O120: KN | S120: sağ mesnet yüzü kesme kuv. = | W120: =(W108-W104*W111/2) -> 15.99030616 | Y120: KN
I121: sağ mesnet yüzünden d mesafede kesme kuv. = | M121: =(M108-(M104*(M112+M111/2))) -> 15.36156897 | O121: KN | S121: sağ mesnet yüzünden d mesafede kesme kuv. = | W121: =(W108-(W104*(W112+W111/2))) -> 9.290306164 | Y121: KN
I122: sağ mesnet yüzünden 2*h mesafede kesme kuv. = | M122: =(M108-(M104*(2*M113+M111/2))) -> 8.06156897 | O122: KN | S122: sağ mesnet yüzünden 2*h mesafede kesme kuv. = | W122: =(W108-(W104*(2*W113+W111/2))) -> 1.990306164 | Y122: KN
I123: sağ mesnet yüzü moment = | M123: =M106-((M108+M120)/2*M111/2) -> 14.62164829 | O123: KNm | S123: sağ mesnet yüzü moment = | W123: =(W106-((W108+W120)/2*W111/2)) -> -2.07691327 | Y123: KNm
C124: kiriş kolon yüzünden d mesafede kesme kuvveti (KN) | I124: --- | O124: =+M121 -> 15.36156897 | S124: =+W117 -> 18.55969384 | Y124: ---
C129: kiriş kolon yüzünden 2*h mesafede kesme kuvveti (KN) | I129: =+M118 -> -1.31156897 | O129: =+M122 -> 8.06156897 | S129: =+W118 -> 11.25969384 | Y129: =+W122 -> 1.990306164
C134: kiriş kolon yüzü kesme kuvveti (KN) | I134: =+M116 -> 12.68843103 | O134: =+M120 -> 22.06156897 | S134: =+W116 -> 25.25969384 | Y134: =+W120 -> 15.99030616
C137: kiriş kolon yüzü moment (KNm) | I137: =+M119 -> -1.664178879 | O137: =+M123 -> 14.62164829 | S137: =+W119 -> 17.0411988 | Y137: =+W123 -> -2.07691327

Sheet 3_aciklikli
B2: SABİT MESNETLİ ÇERÇEVE CROSS ( 3 açıklıklı ) (inş.müh. Gürcan BERBEROĞLU tel:0532 366 02 04 www.betoncelik.com )
I3: pas payı d ' = | N3: 0.03 | P3: m | Y3: dikkat sadece sarı hücrelere rakam giriniz.
R4: 0.5 | T4: m | AB4: 0.5 | AD4: m | AT4: Not : baş ve sonda kirişe oturan mesnet durumunda kirişin kolon yüzü kesme kuvveti dikkate alınır.
T5: m | AD5: m
T6: 0.6 | AD6: 0.6
O10: =SUM(O11:P15) -> 5.250649274 | R10: dm4 | AB10: dm4 | AD10: =SUM(AD11:AE15) -> -1.101506367
O11: =-T29*R21 -> 7.044538273e-07
O12: =-T27*R21 -> 4.125419339e-05 | R12: =T6*R4^3/12*10000 -> 62.5 | T12: =SUM(T13:U17) -> 5.250649274 | Y12: =SUM(Y13:Z17) -> -1.101506367 | AB12: =AD6*AB4^3/12*10000 -> 62.5 | AD12: =-(Z28)*AB17 -> -5.390888093e-06
O13: =-T25*R21 -> 0.00241592622 | T13: =-T29*R17 -> 7.044538273e-07 | AD13: =-(Z26)*AB17 -> -0.0003157009463 | AN13: m
O14: =-T23*R21 -> 0.1414813628 | T14: =-T27*R17 -> 4.125419339e-05 | Y14: =-(Z28)*AB21 -> -5.390888093e-06 | AD14: =-(Z24)*AB17 -> -0.01848806464 | AN14: 3
O15: =-(P21+T21)*R21 -> 5.106710026 | R15: I = | T15: =-T25*R17 -> 0.00241592622 | Y15: =-(Z26)*AB21 -> -0.0003157009463 | AB15: I = | AD15: =-(Z21+Z22+AD21)*AB17 -> -1.082697211
T16: =-T23*R17 -> 0.1414813628 | Y16: =-(Z24)*AB21 -> -0.01848806464
R17: =(4*R12/AN14)/((4*R12/AN14)+(4*W20/W34)+(4*R26/AN25)+(3*M20/M34)) -> 0.2345665849 | T17: =-(P21+T21)*R17 -> 5.106710026 | Y17: =-(Z21+Z22+AD21)*AB21 -> -1.082697211 | AB17: =(4*AB12/AN14)/((4*AB12/AN14)+(4*AB26/AN25)+(4*W20/W34)+(3*AG20/AG34)) -> 0.2345665849
L19: q = | M19: 55 | O19: KN/m | V19: q = | W19: 35 | Y19: KN/m | AF19: q = | AG19: 45 | AI19: KN/m
L20: I = | M20: =(M41*I43^3/12+I43*M41*(((I43*M41*I43/2+M48*(P44-I43)*((P44-I43)/2+I43))/(M41*I43+(P44-I43)*M48))-I43/2)^2+M48*(P44-I43)^3/12+M48*(P44-I43)*(P44-((I43*M41*I43/2+M48*(P44-I43)*((P44-I43)/2+I43))/(M41*I43+(P44-I43)*M48))-(P44-I43)/2)^2)*10000 -> 127.6666667 | O20: dm4 | Q20: =(3*M20/M34)/((4*R12/AN14)+(4*W20/W34)+(4*R26/AN25)+(3*M20/M34)) -> 0.2695170061 | S20: =(4*W20/W34)/((4*R12/AN14)+(4*W20/W34)+(4*R26/AN25)+(3*M20/M34)) -> 0.2613498241 | V20: I = | W20: =(W41*S43^3/12+S43*W41*(((S43*W41*S43/2+W48*(Z44-S43)*((Z44-S43)/2+S43))/(W41*S43+(Z44-S43)*W48))-S43/2)^2+W48*(Z44-S43)^3/12+W48*(Z44-S43)*(Z44-((S43*W41*S43/2+W48*(Z44-S43)*((Z44-S43)/2+S43))/(W41*S43+(Z44-S43)*W48))-(Z44-S43)/2)^2)*10000 -> 127.6666667 | Y20: dm4 | AA20: =(4*W20/W34)/((4*AB12/AN14)+(4*AB26/AN25)+(4*W20/W34)+(3*AG20/AG34)) -> 0.2613498241 | AC20: =(3*AG20/AG34)/((4*AB12/AN14)+(4*AB26/AN25)+(4*W20/W34)+(3*AG20/AG34)) -> 0.2695170061 | AF20: I = | AG20: =(AG41*AC43^3/12+AC43*AG41*(((AC43*AG41*AC43/2+AG48*(AJ44-AC43)*((AJ44-AC43)/2+AC43))/(AG41*AC43+(AJ44-AC43)*AG48))-AC43/2)^2+AG48*(AJ44-AC43)^3/12+AG48*(AJ44-AC43)*(AJ44-((AC43*AG41*AC43/2+AG48*(AJ44-AC43)*((AJ44-AC43)/2+AC43))/(AG41*AC43+(AJ44-AC43)*AG48))-(AJ44-AC43)/2)^2)*10000 -> 127.6666667 | AI20: dm4
P21: =-M19*M34^2/8 -> -110 | R21: =(4*R26/AN25)/((4*R12/AN14)+(4*W20/W34)+(4*R26/AN25)+(3*M20/M34)) -> 0.2345665849 | T21: =W19*W34^2/12 -> 88.22916667 | Z21: =-W19*W34^2/12 -> -88.22916667 | AB21: =(4*AB26/AN25)/((4*AB12/AN14)+(4*AB26/AN25)+(4*W20/W34)+(3*AG20/AG34)) -> 0.2345665849 | AD21: =AG19*AG34^2/8 -> 90
P22: =-(P21+T21)*Q20 -> 5.86760982 | T22: =-(P21+T21)*S20 -> 5.689803462 | Z22: =+T22/2 -> 2.844901731
T23: =+Z23/2 -> -0.6031607735 | Z23: =-(Z21+Z22+AD21)*AA20 -> -1.206321547 | AD23: =-(Z21+Z22+AD21)*AC20 -> -1.244019095
P24: =-T23*Q20 -> 0.1625620859 | R24: dm4 | T24: =-T23*S20 -> 0.157635962 | Z24: =+T24/2 -> 0.07881798102 | AB24: dm4 | AN24: m
T25: =+Z25/2 -> -0.01029953274 | Z25: =-(Z24)*AA20 -> -0.02059906547 | AD25: =-(Z24)*AC20 -> -0.02124278627 | AN25: 3
P26: =-T25*Q20 -> 0.002775899227 | R26: =T38*R36^3/12*10000 -> 62.5 | T26: =-T25*S20 -> 0.002691781069 | Z26: =+T26/2 -> 0.001345890534 | AB26: =AD38*AB36^3/12*10000 -> 62.5
T27: =+Z27/2 -> -0.0001758741272 | Z27: =-(Z26)*AA20 -> -0.0003517482544 | AD27: =-(Z26)*AC20 -> -0.0003627403873
P28: =-T27*Q20 -> 4.740106821e-05 | T28: =-T27*S20 -> 4.59646722e-05 | Z28: =+T28/2 -> 2.29823361e-05
R29: I = | T29: =+Z29/2 -> -3.003214748e-06 | Z29: =-(Z28)*AA20 -> -6.006429497e-06 | AB29: I = | AD29: =-(Z28)*AC20 -> -6.194130419e-06
P30: =-T29*Q20 -> 8.094174476e-07 | T30: =-T29*S20 -> 7.848896462e-07
P31: =SUM(P21:Q30) -> -103.967004 | T31: =SUM(T21:U30) -> 93.46570544 | Z31: =SUM(Z21:AA30) -> -86.53135645 | AD31: =SUM(AD21:AE30) -> 88.73436918
M34: 4 | O34: m | W34: 5.5 | Y34: m | AG34: 4 | AI34: m
C36: mesnet genişliği= | H36: 0.25 | J36: m | R36: 0.5 | T36: m | AB36: 0.5 | AD36: m | AG36: mesnet genişliği= | AL36: 0.25 | AN36: m
T37: m | AD37: m
T38: 0.6 | AD38: 0.6
M41: 1.2 | O41: m | W41: 1.2 | Y41: m | AG41: 1.2 | AI41: m
I43: 0.1 | K43: m | P43: m | S43: 0.1 | U43: m | Z43: m | AC43: 0.1 | AE43: m | AJ43: m
P44: 0.7 | Z44: 0.7 | AJ44: 0.7
M48: 0.25 | O48: m | W48: 0.25 | Y48: m | AG48: 0.25 | AI48: m
O50: =IF(T12<0,T12/2,"") ->  | U50: =IF(T12>0,T12/2,"") -> 2.625324637 | Y50: =IF(AD10<0,AD10/2,"") -> -0.5507531837 | AE50: =IF(AD10>0,AD10/2,"") -> 
F55: moment diyagramı (KNm)
S57: =-T31 -> -93.46570544 | AA57: =+Z31 -> -86.53135645
Q59: =IF(P31=0,"",+P31) -> -103.967004 | AC59: =IF(AD31=0,"",-AD31) -> -88.73436918
O61: =IF(T12>0,-T12,"") -> -5.250649274 | U61: =IF(T12<0,-T12,"") ->  | Y61: =IF(AD10>0,-AD10,"") ->  | AE61: =IF(AD10<0,-AD10,"") -> 1.101506367
O62: =IF(O10<0,O10,"") ->  | U62: =IF(O10>0,O10,"") -> 5.250649274 | Y62: =IF(Y12<0,Y12,"") -> -1.101506367 | AE62: =IF(Y12>0,Y12,"") -> 
L64: =IF(M115=0,"",+M115) -> 64.15805364 | AH64: =IF(AG115=0,"",+AG115) -> 51.10072393
W66: =+W115 -> 42.36792753
O73: =IF(O10>0,-O10/2,"") -> -2.625324637 | U73: =IF(O10<0,-O10/2,"") ->  | Y73: =IF(Y12>0,-Y12/2,"") ->  | AE73: =IF(Y12<0,-Y12/2,"") -> 0.5507531837
O75: =IF(T12<0,(T12+T12/2)/$AN$14,"") ->  | U75: =IF(T12>0,(T12+T12/2)/$AN$14,"") -> 2.625324637 | Y75: =IF(AD10<0,(AD10+AD10/2)/$AN$14,"") -> -0.5507531837 | AE75: =IF(AD10>0,(AD10+AD10/2)/$AN$14,"") -> 
F80: kesme kuvveti diyagramı (KN)
H83: =+M107 -> 84.008249 | AC83: =+AG107 -> 112.1835923
S84: =+W107 -> 97.51079073
O86: =IF(O75<0,O75,"") ->  | U86: =IF(U75>0,U75,"") -> 2.625324637 | Y86: =IF(Y75<0,Y75,"") -> -0.5507531837 | AE86: =IF(AE75>0,AE75,"") -> 
O87: =IF(O98<0,O98,"") ->  | U87: =IF(U98>0,U98,"") -> 2.625324637 | Y87: =IF(Y98<0,Y98,"") -> -0.5507531837 | AE87: =IF(AE98>0,AE98,"") -> 
Q89: =-M108 -> -135.991751 | AA89: =-W108 -> -94.98920927
AL90: =-AG108 -> -67.8164077
J92: x= | K92: =+M114 -> 1.527422709 | M92: m | T92: x= | U92: =+W114 -> 2.786022592 | W92: m | AI92: x= | AJ92: =+AG34-AG114 -> 1.507031282 | AL92: m
O98: =IF(O10<0,(O10+O10/2)/$AN$25,"") ->  | U98: =IF(O10>0,(O10+O10/2)/$AN$25,"") -> 2.625324637 | Y98: =IF(Y12<0,(Y12+Y12/2)/$AN$25,"") -> -0.5507531837 | AE98: =IF(Y12>0,(Y12+Y12/2)/$AN$25,"") -> 
C100: kiriş faydalı yükseklik d = h - d' (m) | I100: =P44-N3 -> 0.67 | S100: =Z44-N3 -> 0.67 | AC100: =AJ44-N3 -> 0.67
I104: yayılı yük = | M104: =+M19 -> 55 | O104: KN/m | S104: yayılı yük = | W104: =+W19 -> 35 | Y104: KN/m | AC104: yayılı yük = | AG104: =+AG19 -> 45 | AI104: KN/m
I105: sol moment= | M105: 0 | O105: KNm | S105: sol moment= | W105: =+T31 -> 93.46570544 | Y105: KNm | AC105: sol moment= | AG105: =+AD31 -> 88.73436918 | AI105: KNm
I106: sağ moment= | M106: =-P31 -> 103.967004 | O106: KNm | S106: sağ moment= | W106: =-Z31 -> 86.53135645 | Y106: KNm | AC106: sağ moment= | AG106: 0 | AI106: KNm
L107: A= | M107: =(M104*M109*M109/2+M105-M106)/M109 -> 84.008249 | O107: KN | V107: A= | W107: =(W104*W109*W109/2+W105-W106)/W109 -> 97.51079073 | Y107: KN | AF107: A= | AG107: =(AG104*AG109*AG109/2+AG105-AG106)/AG109 -> 112.1835923 | AI107: KN
L108: B= | M108: =M104*M109-M107 -> 135.991751 | O108: KN | V108: B= | W108: =W104*W109-W107 -> 94.98920927 | Y108: KN | AF108: B= | AG108: =AG104*AG109-AG107 -> 67.8164077 | AI108: KN
L109: L= | M109: =+M34 -> 4 | O109: m | V109: L= | W109: =+W34 -> 5.5 | Y109: m | AF109: L= | AG109: =+AG34 -> 4 | AI109: m
I110: sol mes.gen= | M110: =+H36 -> 0.25 | O110: m | S110: sol mes.gen= | W110: =+R36 -> 0.5 | Y110: m | AC110: sol mes.gen= | AG110: =+AB36 -> 0.5 | AI110: m
I111: sağ mes.gen= | M111: =+R36 -> 0.5 | O111: m | S111: sağ mes.gen= | W111: =+AB36 -> 0.5 | Y111: m | AC111: sağ mes.gen= | AG111: =+AL36 -> 0.25 | AI111: m
L112: d= | M112: =+I100 -> 0.67 | O112: m | V112: d= | W112: =+S100 -> 0.67 | Y112: m | AF112: d= | AG112: =+AC100 -> 0.67 | AI112: m
L113: h= | M113: =+P44 -> 0.7 | O113: m | V113: h= | W113: =+Z44 -> 0.7 | Y113: m | AF113: h= | AG113: =+AJ44 -> 0.7 | AI113: m
L114: x= | M114: =((M107*M109)/(M107+M108)) -> 1.527422709 | O114: m | V114: x= | W114: =((W107*W109)/(W107+W108)) -> 2.786022592 | Y114: m | AF114: x= | AG114: =((AG107*AG109)/(AG107+AG108)) -> 2.492968718 | AI114: m
K115: Maç= | M115: =((((M105-M106)/M109+M104*M109*0.5)^2/(2*M104))-M105) -> 64.15805364 | O115: KNm | U115: Maç= | W115: =((((W105-W106)/W109+W104*W109*0.5)^2/(2*W104))-W105) -> 42.36792753 | Y115: KNm | AE115: Maç= | AG115: =((((AG105-AG106)/AG109+AG104*AG109*0.5)^2/(2*AG104))-AG105) -> 51.10072393 | AI115: KNm
I116: sol mesnet yüzü kesme kuv. = | M116: =(M107-M104*M110/2) -> 77.133249 | O116: KN | S116: sol mesnet yüzü kesme kuv. = | W116: =(W107-W104*W110/2) -> 88.76079073 | Y116: KN | AC116: sol mesnet yüzü kesme kuv. = | AG116: =(AG107-AG104*AG110/2) -> 100.9335923 | AI116: KN
I117: sol mesnet yüzünden d mesafede kesme kuv. = | M117: =(M107-(M104*(M112+M110/2))) -> 40.283249 | O117: KN | S117: sol mesnet yüzünden d mesafede kesme kuv. = | W117: =(W107-(W104*(W112+W110/2))) -> 65.31079073 | Y117: KN | AC117: sol mesnet yüzünden d mesafede kesme kuv. = | AG117: =(AG107-(AG104*(AG112+AG110/2))) -> 70.7835923 | AI117: KN
I118: sol mesnet yüzünden 2*h mesafede kesme kuv. = | M118: =(M107-(M104*(2*M113+M110/2))) -> 0.1332490038 | O118: KN | S118: sol mesnet yüzünden 2*h mesafede kesme kuv. = | W118: =(W107-(W104*(2*W113+W110/2))) -> 39.76079073 | Y118: KN | AC118: sol mesnet yüzünden 2*h mesafede kesme kuv. = | AG118: =(AG107-(AG104*(2*AG113+AG110/2))) -> 37.9335923 | AI118: KN
I119: sol mesnet yüzü moment = | M119: =M105-((M107+M116)/2*M110/2) -> -10.07134363 | O119: KNm | S119: sol mesnet yüzü moment = | W119: =W105-((W107+W116)/2*W110/2) -> 70.18175776 | Y119: KNm | AC119: sol mesnet yüzü moment = | AG119: =AG105-((AG107+AG116)/2*AG110/2) -> 62.09472111 | AI119: KNm
I120: sağ mesnet yüzü kesme kuv. = | M120: =(M108-M104*M111/2) -> 122.241751 | O120: KN | S120: sağ mesnet yüzü kesme kuv. = | W120: =(W108-W104*W111/2) -> 86.23920927 | Y120: KN | AC120: sağ mesnet yüzü kesme kuv. = | AG120: =(AG108-AG104*AG111/2) -> 62.1914077 | AI120: KN
I121: sağ mesnet yüzünden d mesafede kesme kuv. = | M121: =(M108-(M104*(M112+M111/2))) -> 85.391751 | O121: KN | S121: sağ mesnet yüzünden d mesafede kesme kuv. = | W121: =(W108-(W104*(W112+W111/2))) -> 62.78920927 | Y121: KN | AC121: sağ mesnet yüzünden d mesafede kesme kuv. = | AG121: =(AG108-(AG104*(AG112+AG111/2))) -> 32.0414077 | AI121: KN
I122: sağ mesnet yüzünden 2*h mesafede kesme kuv. = | M122: =(M108-(M104*(2*M113+M111/2))) -> 45.241751 | O122: KN | S122: sağ mesnet yüzünden 2*h mesafede kesme kuv. = | W122: =(W108-(W104*(2*W113+W111/2))) -> 37.23920927 | Y122: KN | AC122: sağ mesnet yüzünden 2*h mesafede kesme kuv. = | AG122: =(AG108-(AG104*(2*AG113+AG111/2))) -> -0.808592296 | AI122: KN
I123: sağ mesnet yüzü moment = | M123: =M106-((M108+M120)/2*M111/2) -> 71.68781624 | O123: KNm | S123: sağ mesnet yüzü moment = | W123: =W106-((W108+W120)/2*W111/2) -> 63.87780413 | Y123: KNm | AC123: sağ mesnet yüzü moment = | AG123: =AG106-((AG108+AG120)/2*AG111/2) -> -8.125488463 | AI123: KNm
C124: kiriş kolon yüzünden d mesafede kesme kuvveti (KN) | I124: --- | O124: =+M121 -> 85.391751 | S124: =+W117 -> 65.31079073 | Y124: =+W121 -> 62.78920927 | AC124: =+AG117 -> 70.7835923 | AI124: ---
C129: kiriş kolon yüzünden 2*h mesafede kesme kuvveti (KN) | I129: =+M118 -> 0.1332490038 | O129: =+M122 -> 45.241751 | S129: =+W118 -> 39.76079073 | Y129: =+W122 -> 37.23920927 | AC129: =+AG118 -> 37.9335923 | AI129: =+AG122 -> -0.808592296
C134: kiriş kolon yüzü kesme kuvveti (KN) | I134: =+M116 -> 77.133249 | O134: =+M120 -> 122.241751 | S134: =+W116 -> 88.76079073 | Y134: =+W120 -> 86.23920927 | AC134: =+AG116 -> 100.9335923 | AI134: =+AG120 -> 62.1914077
C137: kiriş kolon yüzü moment (KNm) | I137: =+M119 -> -10.07134363 | O137: =+M123 -> 71.68781624 | S137: =+W119 -> 70.18175776 | Y137: =+W123 -> 63.87780413 | AC137: =+AG119 -> 62.09472111 | AI137: =+AG123 -> -8.125488463

Sheet 4_aciklikli
B2: SABİT MESNETLİ ÇERÇEVE CROSS ( 4 açıklıklı ) (inş.müh. Gürcan BERBEROĞLU tel:0532 366 02 04 www.betoncelik.com )
T3: pas payı d ' = | Y3: 0.03 | AA3: m | AG3: dikkat sadece sarı hücrelere rakam giriniz.
R4: 0.3 | T4: m | AB4: 0.3 | AD4: m | AL4: 0.3 | AN4: m | BD4: Not : baş ve sonda kirişe oturan mesnet durumunda kirişin kolon yüzü kesme kuvveti dikkate alınır.
T5: m | AD5: m | AN5: m
T6: 0.4 | AD6: 0.4 | AN6: 0.3
O10: =SUM(O11:P15) -> -0.1291973013 | R10: dm4 | AB10: dm4 | AL10: dm4 | AN10: =SUM(AN11:AO15) -> 2.494020443
O11: =-T29*R21 -> 0.0002727253668 | AN11: =-AJ29*AL17 -> 0.0001513890444
O12: =-T27*R21 -> 0.003412820684 | R12: =T6*R4^3/12*10000 -> 9 | T12: =SUM(T13:U17) -> -0.1084805329 | Y12: =SUM(Y13:Z17) -> -3.780356232 | AB12: =AD6*AB4^3/12*10000 -> 9 | AD12: =SUM(AD13:AE17) -> -2.116117774 | AI12: =SUM(AI13:AJ17) -> 3.960412092 | AL12: =AN6*AL4^3/12*10000 -> 6.75 | AN12: =-AJ27*AL17 -> 0.001894446666
O13: =-T25*R21 -> 0.04270723018 | T13: =-T29*R17 -> 0.000228993894 | AI13: =-AJ29*AL21 -> 0.0002404001955 | AN13: =-AJ25*AL17 -> 0.02370665715 | AX13: m
O14: =-T23*R21 -> 0.5344281693 | T14: =-T27*R17 -> 0.002865575385 | Y14: =-(Z28+AD28)*AB21 -> -0.001775072074 | AD14: =-(Z28+AD28)*AB17 -> -0.0009936263502 | AI14: =-AJ27*AL21 -> 0.003008311142 | AN14: =-AJ23*AL17 -> 0.2966594959 | AX14: 3.3
O15: =-(P21+T21)*R21 -> -0.7100182468 | R15: I = | T15: =-T25*R17 -> 0.03585913205 | Y15: =-(Z26+AD26)*AB21 -> -0.02221283175 | AB15: I = | AD15: =-(Z26+AD26)*AB17 -> -0.01243400494 | AI15: =-AJ25*AL21 -> 0.03764529353 | AL15: I = | AN15: =-(AJ21+AN21)*AL17 -> 2.171608454
T16: =-T23*R17 -> 0.4487326902 | Y16: =-(Z24+AD24)*AB21 -> -0.2779661185 | AD16: =-(Z24+AD24)*AB17 -> -0.1555961946 | AI16: =-AJ23*AL21 -> 0.4710842922
R17: =(4*R12/AX14)/((4*R12/AX14)+(4*W20/W34)+(4*R26/AX25)+(3*M20/M34)) -> 0.1079849524 | T17: =-(P21+T21)*R17 -> -0.5961669244 | Y17: =-(Z21+Z22+AD21+AD22)*AB21 -> -3.478402209 | AB17: =(4*AB12/AX14)/((4*AB12/AX14)+(4*AG20/AG34)+(4*AB26/AX25)+(4*W20/W34)) -> 0.09638770003 | AD17: =-(Z21+Z22+AD21+AD22)*AB17 -> -1.947093948 | AI17: =-(AJ21+AN21)*AL21 -> 3.448433795 | AL17: =(4*AL12/AX14)/((4*AL12/AX14)+(4*AL26/AX25)+(4*AG20/AG34)+(3*AQ20/AQ34)) -> 0.09178638294
L19: q = | M19: 10 | O19: KN/m | V19: q = | W19: 25 | Y19: KN/m | AF19: q = | AG19: 25 | AI19: KN/m | AP19: q = | AQ19: 10 | AS19: KN/m
L20: I = | M20: =(M41*I43^3/12+I43*M41*(((I43*M41*I43/2+M48*(P44-I43)*((P44-I43)/2+I43))/(M41*I43+(P44-I43)*M48))-I43/2)^2+M48*(P44-I43)^3/12+M48*(P44-I43)*(P44-((I43*M41*I43/2+M48*(P44-I43)*((P44-I43)/2+I43))/(M41*I43+(P44-I43)*M48))-(P44-I43)/2)^2)*10000 -> 40.74404762 | O20: dm4 | Q20: =(3*M20/M34)/((4*R12/AX14)+(4*W20/W34)+(4*R26/AX25)+(3*M20/M34)) -> 0.3024824028 | S20: =(4*W20/W34)/((4*R12/AX14)+(4*W20/W34)+(4*R26/AX25)+(3*M20/M34)) -> 0.4609255662 | V20: I = | W20: =(W41*S43^3/12+S43*W41*(((S43*W41*S43/2+W48*(Z44-S43)*((Z44-S43)/2+S43))/(W41*S43+(Z44-S43)*W48))-S43/2)^2+W48*(Z44-S43)^3/12+W48*(Z44-S43)*(Z44-((S43*W41*S43/2+W48*(Z44-S43)*((Z44-S43)/2+S43))/(W41*S43+(Z44-S43)*W48))-(Z44-S43)/2)^2)*10000 -> 40.74404762 | Y20: dm4 | AA20: =(4*W20/W34)/((4*AB12/AX14)+(4*AG20/AG34)+(4*AB26/AX25)+(4*W20/W34)) -> 0.4114235756 | AC20: =(4*AG20/AG34)/((4*AB12/AX14)+(4*AG20/AG34)+(4*AB26/AX25)+(4*W20/W34)) -> 0.3199961144 | AF20: I = | AG20: =(AG41*AC43^3/12+AC43*AG41*(((AC43*AG41*AC43/2+AG48*(AJ44-AC43)*((AJ44-AC43)/2+AC43))/(AG41*AC43+(AJ44-AC43)*AG48))-AC43/2)^2+AG48*(AJ44-AC43)^3/12+AG48*(AJ44-AC43)*(AJ44-((AC43*AG41*AC43/2+AG48*(AJ44-AC43)*((AJ44-AC43)/2+AC43))/(AG41*AC43+(AJ44-AC43)*AG48))-(AJ44-AC43)/2)^2)*10000 -> 40.74404762 | AI20: dm4 | AK20: =(4*AG20/AG34)/((4*AL12/AX14)+(4*AL26/AX25)+(4*AG20/AG34)+(3*AQ20/AQ34)) -> 0.4062936921 | AM20: =(3*AQ20/AQ34)/((4*AL12/AX14)+(4*AL26/AX25)+(4*AG20/AG34)+(3*AQ20/AQ34)) -> 0.3561665483 | AP20: I = | AQ20: =(AQ41*AM43^3/12+AM43*AQ41*(((AM43*AQ41*AM43/2+AQ48*(AT44-AM43)*((AT44-AM43)/2+AM43))/(AQ41*AM43+(AT44-AM43)*AQ48))-AM43/2)^2+AQ48*(AT44-AM43)^3/12+AQ48*(AT44-AM43)*(AT44-((AM43*AQ41*AM43/2+AQ48*(AT44-AM43)*((AT44-AM43)/2+AM43))/(AQ41*AM43+(AT44-AM43)*AQ48))-(AT44-AM43)/2)^2)*10000 -> 40.74404762 | AS20: dm4
P21: =-M19*M34^2/8 -> -20 | R21: =(4*R26/AX25)/((4*R12/AX14)+(4*W20/W34)+(4*R26/AX25)+(3*M20/M34)) -> 0.1286070787 | T21: =W19*W34^2/12 -> 25.52083333 | Z21: =-W19*W34^2/12 -> -25.52083333 | AB21: =(4*AB26/AX25)/((4*AB12/AX14)+(4*AG20/AG34)+(4*AB26/AX25)+(4*W20/W34)) -> 0.17219261 | AD21: =AG19*AG34^2/12 -> 42.1875 | AJ21: =-AG19*AG34^2/12 -> -42.1875 | AL21: =(4*AL26/AX25)/((4*AL12/AX14)+(4*AL26/AX25)+(4*AG20/AG34)+(3*AQ20/AQ34)) -> 0.1457533766 | AN21: =AQ19*AQ34^2/8 -> 18.528125
P22: =-(P21+T21)*Q20 -> -1.669954932 | T22: =-(P21+T21)*S20 -> -2.54469323 | Z22: =+T22/2 -> -1.272346615 | AD22: =+AJ22/2 -> 4.806327411 | AJ22: =-(AJ21+AN21)*AK20 -> 9.612654823 | AN22: =-(AJ21+AN21)*AM20 -> 8.426677929
T23: =+Z23/2 -> -4.155511305 | Z23: =-(Z21+Z22+AD21+AD22)*AA20 -> -8.311022609 | AD23: =-(Z21+Z22+AD21+AD22)*AC20 -> -6.464128696 | AJ23: =+AD23/2 -> -3.232064348
P24: =-T23*Q20 -> 1.256969044 | R24: dm4 | T24: =-T23*S20 -> 1.915381401 | Z24: =+T24/2 -> 0.9576907004 | AB24: dm4 | AD24: =+AJ24/2 -> 0.6565836786 | AJ24: =-AJ23*AK20 -> 1.313167357 | AL24: dm4 | AN24: =-AJ23*AM20 -> 1.151153203 | AX24: m
T25: =+Z25/2 -> -0.3320752685 | Z25: =-(Z24+AD24)*AA20 -> -0.6641505371 | AD25: =-(Z24+AD24)*AC20 -> -0.5165615288 | AJ25: =+AD25/2 -> -0.2582807644 | AX25: 3.3
P26: =-T25*Q20 -> 0.1004469251 | R26: =T38*R36^3/12*10000 -> 10.71875 | T26: =-T25*S20 -> 0.1530619812 | Z26: =+T26/2 -> 0.07653099058 | AB26: =AD38*AB36^3/12*10000 -> 16.078125 | AD26: =+AJ26/2 -> 0.05246892269 | AJ26: =-AJ25*AK20 -> 0.1049378454 | AL26: =AN38*AL36^3/12*10000 -> 10.71875 | AN26: =-AJ25*AM20 -> 0.09199096836
T27: =+Z27/2 -> -0.02653680279 | Z27: =-(Z26+AD26)*AA20 -> -0.05307360557 | AD27: =-(Z26+AD26)*AC20 -> -0.041279471 | AJ27: =+AD27/2 -> -0.0206397355
P28: =-T27*Q20 -> 0.00802691587 | T28: =-T27*S20 -> 0.01223149085 | Z28: =+T28/2 -> 0.006115745425 | AD28: =+AJ28/2 -> 0.004192897171 | AJ28: =-AJ27*AK20 -> 0.008385794342 | AN28: =-AJ27*AM20 -> 0.007351183351
R29: I = | T29: =+Z29/2 -> -0.002120609298 | Z29: =-(Z28+AD28)*AA20 -> -0.004241218596 | AB29: I = | AD29: =-(Z28+AD28)*AC20 -> -0.003298725575 | AJ29: =+AD29/2 -> -0.001649362788 | AL29: I =
P30: =-T29*S20 -> 0.0009774430414 | T30: =-T29*S20 -> 0.0009774430414 | AJ30: =-AJ29*AK20 -> 0.0006701256966 | AN30: =-AJ29*AM20 -> 0.0005874478509
P31: =SUM(P21:Q30) -> -20.3035346 | T31: =SUM(T21:U30) -> 20.54154843 | Z31: =SUM(Z21:AA30) -> -34.78533048 | AD31: =SUM(AD21:AE30) -> 40.68180449 | AJ31: =SUM(AJ21:AK30) -> -34.66031827 | AN31: =SUM(AN21:AO30) -> 28.20588573
M34: 4 | O34: m | W34: 3.5 | Y34: m | AG34: 4.5 | AI34: m | AQ34: 3.85 | AS34: m
C36: mesnet genişliği= | H36: 0.25 | J36: m | R36: 0.35 | T36: m | AB36: 0.35 | AD36: m | AL36: 0.35 | AN36: m | AQ36: mesnet genişliği= | AV36: 0.25 | AX36: m
T37: m | AD37: m | AN37: m
T38: 0.3 | AD38: 0.45 | AN38: 0.3
M41: 0.75 | O41: m | W41: 0.75 | Y41: m | AG41: 0.75 | AI41: m | AQ41: 0.75 | AS41: m
I43: 0.1 | K43: m | P43: m | S43: 0.1 | U43: m | Z43: m | AC43: 0.1 | AE43: m | AJ43: m | AM43: 0.1 | AO43: m | AT43: m
P44: 0.5 | Z44: 0.5 | AJ44: 0.5 | AT44: 0.5
M48: 0.25 | O48: m | W48: 0.25 | Y48: m | AG48: 0.25 | AI48: m | AQ48: 0.25 | AS48: m
O50: =IF(T12<0,T12/2,"") -> -0.05424026644 | U50: =IF(T12>0,T12/2,"") ->  | Y50: =IF(AD12<0,AD12/2,"") -> -1.058058887 | AE50: =IF(AD12>0,AD12/2,"") ->  | AI50: =IF(AN10<0,AN10/2,"") ->  | AO50: =IF(AN10>0,AN10/2,"") -> 1.247010221
F55: moment diyagramı (KNm)
S57: =-T31 -> -20.54154843 | AA57: =+Z31 -> -34.78533048 | AK57: =+AJ31 -> -34.66031827
AC58: =-AD31 -> -40.68180449
Q59: =IF(P31=0,"",+P31) -> -20.3035346 | AM59: =IF(AN31=0,"",-AN31) -> -28.20588573
O61: =IF(T12>0,-T12,"") ->  | U61: =IF(T12<0,-T12,"") -> 0.1084805329 | Y61: =IF(AD12>0,-AD12,"") ->  | AE61: =IF(AD12<0,-AD12,"") -> 2.116117774 | AI61: =IF(AN10>0,-AN10,"") -> -2.494020443 | AO61: =IF(AN10<0,-AN10,"") -> 
O62: =IF(O10<0,O10,"") -> -0.1291973013 | U62: =IF(O10>0,O10,"") ->  | Y62: =IF(Y12<0,Y12,"") -> -3.780356232 | AE62: =IF(Y12>0,Y12,"") ->  | AI62: =IF(AI12<0,AI12,"") ->  | AO62: =IF(AI12>0,AI12,"") -> 3.960412092
L64: =IF(M115=0,"",+M115) -> 11.13646244 | AR64: =IF(AQ115=0,"",+AQ115) -> 7.10884545
W66: =+W115 -> 10.94905189 | AG66: =+AG115 -> 25.64599929
O73: =IF(O10>0,-O10/2,"") ->  | U73: =IF(O10<0,-O10/2,"") -> 0.06459865066 | Y73: =IF(Y12>0,-Y12/2,"") ->  | AE73: =IF(Y12<0,-Y12/2,"") -> 1.890178116 | AI73: =IF(AI12>0,-AI12/2,"") -> -1.980206046 | AO73: =IF(AI12<0,-AI12/2,"") -> 
O75: =IF(T12<0,(T12+T12/2)/$AX$14,"") -> -0.04930933313 | U75: =IF(T12>0,(T12+T12/2)/$AX$14,"") ->  | Y75: =IF(AD12<0,(AD12+AD12/2)/$AX$14,"") -> -0.9618717155 | AE75: =IF(AD12>0,(AD12+AD12/2)/$AX$14,"") ->  | AI75: =IF(AN10<0,(AN10+AN10/2)/$AX$14,"") ->  | AO75: =IF(AN10>0,(AN10+AN10/2)/$AX$14,"") -> 1.133645656
F80: kesme kuvveti diyagramı (KN)
H83: =+M107 -> 14.92411635 | AM83: =+AQ107 -> 26.57620409
S84: =+W107 -> 39.68034799 | AC84: =+AG107 -> 57.58810805
O86: =IF(O75<0,O75,"") -> -0.04930933313 | U86: =IF(U75>0,U75,"") ->  | Y86: =IF(Y75<0,Y75,"") -> -0.9618717155 | AE86: =IF(AE75>0,AE75,"") ->  | AI86: =IF(AI75<0,AI75,"") ->  | AO86: =IF(AO75>0,AO75,"") -> 1.133645656
O87: =IF(O98<0,O98,"") -> -0.05872604605 | U87: =IF(U98>0,U98,"") ->  | Y87: =IF(Y98<0,Y98,"") -> -1.718343742 | AE87: =IF(AE98>0,AE98,"") ->  | AI87: =IF(AI98<0,AI98,"") ->  | AO87: =IF(AO98>0,AO98,"") -> 1.800187314
Q89: =-M108 -> -25.07588365 | AA89: =-W108 -> -47.81965201 | AK89: =-AG108 -> -54.91189195
AV90: =-AQ108 -> -11.92379591
J92: x= | K92: =+M114 -> 1.492411635 | M92: m | T92: x= | U92: =+W114 -> 1.587213919 | W92: m | AD92: x= | AE92: =+AG114 -> 2.303524322 | AG92: m | AS92: x= | AT92: =+AQ34-AQ114 -> 1.192379591 | AV92: m
O98: =IF(O10<0,(O10+O10/2)/$AX$25,"") -> -0.05872604605 | U98: =IF(O10>0,(O10+O10/2)/$AX$25,"") ->  | Y98: =IF(Y12<0,(Y12+Y12/2)/$AX$25,"") -> -1.718343742 | AE98: =IF(Y12>0,(Y12+Y12/2)/$AX$25,"") ->  | AI98: =IF(AI12<0,(AI12+AI12/2)/$AX$25,"") ->  | AO98: =IF(AI12>0,(AI12+AI12/2)/$AX$25,"") -> 1.800187314
C100: kiriş faydalı yükseklik d = h - d' (m) | I100: =P44-Y3 -> 0.47 | S100: =Z44-Y3 -> 0.47 | AC100: =AJ44-Y3 -> 0.47 | AM100: =AT44-Y3 -> 0.47
I104: yayılı yük = | M104: =+M19 -> 10 | O104: KN/m | S104: yayılı yük = | W104: =+W19 -> 25 | Y104: KN/m | AC104: yayılı yük = | AG104: =+AG19 -> 25 | AI104: KN/m | AM104: yayılı yük = | AQ104: =+AQ19 -> 10 | AS104: KN/m
I105: sol moment= | M105: 0 | O105: KNm | S105: sol moment= | W105: =+T31 -> 20.54154843 | Y105: KNm | AC105: sol moment= | AG105: =+AD31 -> 40.68180449 | AI105: KNm | AM105: sol moment= | AQ105: =+AN31 -> 28.20588573 | AS105: KNm
I106: sağ moment= | M106: =-P31 -> 20.3035346 | O106: KNm | S106: sağ moment= | W106: =-Z31 -> 34.78533048 | Y106: KNm | AC106: sağ moment= | AG106: =-AJ31 -> 34.66031827 | AI106: KNm | AM106: sağ moment= | AQ106: 0 | AS106: KNm
L107: A= | M107: =(M104*M109*M109/2+M105-M106)/M109 -> 14.92411635 | O107: KN | V107: A= | W107: =(W104*W109*W109/2+W105-W106)/W109 -> 39.68034799 | Y107: KN | AF107: A= | AG107: =(AG104*AG109*AG109/2+AG105-AG106)/AG109 -> 57.58810805 | AI107: KN | AP107: A= | AQ107: =(AQ104*AQ109*AQ109/2+AQ105-AQ106)/AQ109 -> 26.57620409 | AS107: KN
L108: B= | M108: =M104*M109-M107 -> 25.07588365 | O108: KN | V108: B= | W108: =W104*W109-W107 -> 47.81965201 | Y108: KN | AF108: B= | AG108: =AG104*AG109-AG107 -> 54.91189195 | AI108: KN | AP108: B= | AQ108: =AQ104*AQ109-AQ107 -> 11.92379591 | AS108: KN
L109: L= | M109: =+M34 -> 4 | O109: m | V109: L= | W109: =+W34 -> 3.5 | Y109: m | AF109: L= | AG109: =+AG34 -> 4.5 | AI109: m | AP109: L= | AQ109: =+AQ34 -> 3.85 | AS109: m
I110: sol mes.gen= | M110: =+H36 -> 0.25 | O110: m | S110: sol mes.gen= | W110: =+R36 -> 0.35 | Y110: m | AC110: sol mes.gen= | AG110: =+AB36 -> 0.35 | AI110: m | AM110: sol mes.gen= | AQ110: =+AL36 -> 0.35 | AS110: m
I111: sağ mes.gen= | M111: =+R36 -> 0.35 | O111: m | S111: sağ mes.gen= | W111: =+AB36 -> 0.35 | Y111: m | AC111: sağ mes.gen= | AG111: =+AL36 -> 0.35 | AI111: m | AM111: sağ mes.gen= | AQ111: =+AV36 -> 0.25 | AS111: m
L112: d= | M112: =+I100 -> 0.47 | O112: m | V112: d= | W112: =+S100 -> 0.47 | Y112: m | AF112: d= | AG112: =+AC100 -> 0.47 | AI112: m | AP112: d= | AQ112: =+AM100 -> 0.47 | AS112: m
L113: h= | M113: =+P44 -> 0.5 | O113: m | V113: h= | W113: =+Z44 -> 0.5 | Y113: m | AF113: h= | AG113: =+AJ44 -> 0.5 | AI113: m | AP113: h= | AQ113: =+AT44 -> 0.5 | AS113: m
L114: x= | M114: =((M107*M109)/(M107+M108)) -> 1.492411635 | O114: m | V114: x= | W114: =((W107*W109)/(W107+W108)) -> 1.587213919 | Y114: m | AF114: x= | AG114: =((AG107*AG109)/(AG107+AG108)) -> 2.303524322 | AI114: m | AP114: x= | AQ114: =((AQ107*AQ109)/(AQ107+AQ108)) -> 2.657620409 | AS114: m
K115: Maç= | M115: =((((M105-M106)/M109+M104*M109*0.5)^2/(2*M104))-M105) -> 11.13646244 | O115: KNm | U115: Maç= | W115: =((((W105-W106)/W109+W104*W109*0.5)^2/(2*W104))-W105) -> 10.94905189 | Y115: KNm | AE115: Maç= | AG115: =((((AG105-AG106)/AG109+AG104*AG109*0.5)^2/(2*AG104))-AG105) -> 25.64599929 | AI115: KNm | AO115: Maç= | AQ115: =((((AQ105-AQ106)/AQ109+AQ104*AQ109*0.5)^2/(2*AQ104))-AQ105) -> 7.10884545 | AS115: KNm
I116: sol mesnet yüzü kesme kuv. = | M116: =(M107-M104*M110/2) -> 13.67411635 | O116: KN | S116: sol mesnet yüzü kesme kuv. = | W116: =(W107-W104*W110/2) -> 35.30534799 | Y116: KN | AC116: sol mesnet yüzü kesme kuv. = | AG116: =(AG107-AG104*AG110/2) -> 53.21310805 | AI116: KN | AM116: sol mesnet yüzü kesme kuv. = | AQ116: =(AQ107-AQ104*AQ110/2) -> 24.82620409 | AS116: KN
I117: sol mesnet yüzünden d mesafede kesme kuv. = | M117: =(M107-(M104*(M112+M110/2))) -> 8.974116349 | O117: KN | S117: sol mesnet yüzünden d mesafede kesme kuv. = | W117: =(W107-(W104*(W112+W110/2))) -> 23.55534799 | Y117: KN | AC117: sol mesnet yüzünden d mesafede kesme kuv. = | AG117: =(AG107-(AG104*(AG112+AG110/2))) -> 41.46310805 | AI117: KN | AM117: sol mesnet yüzünden d mesafede kesme kuv. = | AQ117: =(AQ107-(AQ104*(AQ112+AQ110/2))) -> 20.12620409 | AS117: KN
I118: sol mesnet yüzünden 2*h mesafede kesme kuv. = | M118: =(M107-(M104*(2*M113+M110/2))) -> 3.674116349 | O118: KN | S118: sol mesnet yüzünden 2*h mesafede kesme kuv. = | W118: =(W107-(W104*(2*W113+W110/2))) -> 10.30534799 | Y118: KN | AC118: sol mesnet yüzünden 2*h mesafede kesme kuv. = | AG118: =(AG107-(AG104*(2*AG113+AG110/2))) -> 28.21310805 | AI118: KN | AM118: sol mesnet yüzünden 2*h mesafede kesme kuv. = | AQ118: =(AQ107-(AQ104*(2*AQ113+AQ110/2))) -> 14.82620409 | AS118: KN
I119: sol mesnet yüzü moment = | M119: =M105-((M107+M116)/2*M110/2) -> -1.787389544 | O119: KNm | S119: sol mesnet yüzü moment = | W119: =W105-((W107+W116)/2*W110/2) -> 13.98030004 | Y119: KNm | AC119: sol mesnet yüzü moment = | AG119: =AG105-((AG107+AG116)/2*AG110/2) -> 30.98669808 | AI119: KNm | AM119: sol mesnet yüzü moment = | AQ119: =AQ105-((AQ107+AQ116)/2*AQ110/2) -> 23.70817502 | AS119: KNm
I120: sağ mesnet yüzü kesme kuv. = | M120: =(M108-M104*M111/2) -> 23.32588365 | O120: KN | S120: sağ mesnet yüzü kesme kuv. = | W120: =(W108-W104*W111/2) -> 43.44465201 | Y120: KN | AC120: sağ mesnet yüzü kesme kuv. = | AG120: =(AG108-AG104*AG111/2) -> 50.53689195 | AI120: KN | AM120: sağ mesnet yüzü kesme kuv. = | AQ120: =(AQ108-AQ104*AQ111/2) -> 10.67379591 | AS120: KN
I121: sağ mesnet yüzünden d mesafede kesme kuv. = | M121: =(M108-(M104*(M112+M111/2))) -> 18.62588365 | O121: KN | S121: sağ mesnet yüzünden d mesafede kesme kuv. = | W121: =(W108-(W104*(W112+W111/2))) -> 31.69465201 | Y121: KN | AC121: sağ mesnet yüzünden d mesafede kesme kuv. = | AG121: =(AG108-(AG104*(AG112+AG111/2))) -> 38.78689195 | AI121: KN | AM121: sağ mesnet yüzünden d mesafede kesme kuv. = | AQ121: =(AQ108-(AQ104*(AQ112+AQ111/2))) -> 5.973795914 | AS121: KN
I122: sağ mesnet yüzünden 2*h mesafede kesme kuv. = | M122: =(M108-(M104*(2*M113+M111/2))) -> 13.32588365 | O122: KN | S122: sağ mesnet yüzünden 2*h mesafede kesme kuv. = | W122: =(W108-(W104*(2*W113+W111/2))) -> 18.44465201 | Y122: KN | AC122: sağ mesnet yüzünden 2*h mesafede kesme kuv. = | AG122: =(AG108-(AG104*(2*AG113+AG111/2))) -> 25.53689195 | AI122: KN | AM122: sağ mesnet yüzünden 2*h mesafede kesme kuv. = | AQ122: =(AQ108-(AQ104*(2*AQ113+AQ111/2))) -> 0.673795914 | AS122: KN
I123: sağ mesnet yüzü moment = | M123: =M106-((M108+M120)/2*M111/2) -> 16.06837996 | O123: KNm | S123: sağ mesnet yüzü moment = | W123: =W106-((W108+W120)/2*W111/2) -> 26.79970388 | Y123: KNm | AC123: sağ mesnet yüzü moment = | AG123: =AG106-((AG108+AG120)/2*AG111/2) -> 25.43354967 | AI123: KNm | AM123: sağ mesnet yüzü moment = | AQ123: =AQ106-((AQ108+AQ120)/2*AQ111/2) -> -1.412349489 | AS123: KNm
C124: kiriş kolon yüzünden d mesafede kesme kuvveti (KN) | I124: --- | O124: =+M121 -> 18.62588365 | S124: =+W117 -> 23.55534799 | Y124: =+W121 -> 31.69465201 | AC124: =+AG117 -> 41.46310805 | AI124: =+AG121 -> 38.78689195 | AM124: =+AQ117 -> 20.12620409 | AS124: ---
C129: kiriş kolon yüzünden 2*h mesafede kesme kuvveti (KN) | I129: =+M118 -> 3.674116349 | O129: =+M122 -> 13.32588365 | S129: =+W118 -> 10.30534799 | Y129: =+W122 -> 18.44465201 | AC129: =+AG118 -> 28.21310805 | AI129: =+AG122 -> 25.53689195 | AM129: =+AQ118 -> 14.82620409 | AS129: =+AQ122 -> 0.673795914
C134: kiriş kolon yüzü kesme kuvveti (KN) | I134: =+M116 -> 13.67411635 | O134: =+M120 -> 23.32588365 | S134: =+W116 -> 35.30534799 | Y134: =+W120 -> 43.44465201 | AC134: =+AG116 -> 53.21310805 | AI134: =+AG120 -> 50.53689195 | AM134: =+AQ116 -> 24.82620409 | AS134: =+AQ120 -> 10.67379591
C137: kiriş kolon yüzü moment (KNm) | I137: =+M119 -> -1.787389544 | O137: =+M123 -> 16.06837996 | S137: =+W119 -> 13.98030004 | Y137: =+W123 -> 26.79970388 | AC137: =+AG119 -> 30.98669808 | AI137: =+AG123 -> 25.43354967 | AM137: =+AQ119 -> 23.70817502 | AS137: =+AQ123 -> -1.412349489

Sheet 5_aciklikli
B2: SABİT MESNETLİ ÇERÇEVE CROSS ( 5 açıklıklı ) (inş.müh. Gürcan BERBEROĞLU tel:0532 366 02 04 www.betoncelik.com )
T3: pas payı d ' = | Y3: 0.03 | AA3: m | AG3: dikkat sadece sarı hücrelere rakam giriniz.
R4: 0.35 | T4: m | AB4: 0.4 | AD4: m | AL4: 0.4 | AN4: m | AV4: 0.35 | AX4: m | BN4: Not : baş ve sonda kirişe oturan mesnet durumunda kirişin kolon yüzü kesme kuvveti dikkate alınır.
T5: m | AD5: m | AN5: m | AX5: m
T6: 0.4 | AD6: 0.35 | AN6: 0.35 | AX6: 0.4
O10: =SUM(O11:P15) -> -16.23697046 | R10: dm4 | AB10: dm4 | AL10: dm4 | AV10: dm4 | AX10: =SUM(AX11:AY15) -> 3.011295048
O11: =-T29*R21 -> -0.0002683087818
O12: =-T27*R21 -> -0.003343163276 | R12: =T6*R4^3/12*10000 -> 14.29166667 | T12: =SUM(T13:U17) -> -6.364892421 | Y12: =SUM(Y13:Z17) -> 0.001658377436 | AB12: =AD6*AB4^3/12*10000 -> 18.66666667 | AD12: =SUM(AD13:AE17) -> 0.0009059022606 | AI12: =SUM(AI13:AJ17) -> 2.745625686 | AL12: =AN6*AL4^3/12*10000 -> 18.66666667 | AN12: =SUM(AN13:AO17) -> 3.187665196 | AS12: =SUM(AS13:AT17) -> 8.779285854 | AV12: =AX6*AV4^3/12*10000 -> 14.29166667 | AX12: =-AT28*AV17 -> 0.0004630914154
O13: =-T25*R21 -> -0.03712775505 | T13: =-T29*R17 -> -0.0001051770425 | AI13: =-(AJ29+AN29)*AL21 -> -0.0002309491114 | AN13: =-(AJ29+AN29)*AL17 -> -0.0002681313946 | AX13: =-AT26*AV17 -> 0.006038834336 | BH13: m
O14: =-T23*R21 -> 0.04044901862 | T14: =-T27*R17 -> -0.001310520004 | Y14: =-(Z28+AD28)*AB21 -> 0.001533232972 | AD14: =-(Z28+AD28)*AB17 -> 0.0008375410715 | AI14: =-(AJ27+AN27)*AL21 -> -0.002934438601 | AN14: =-(AJ27+AN27)*AL17 -> -0.003406876562 | AS14: =-AT28*AV21 -> 0.001350120745 | AX14: =-AT24*AV17 -> 0.09392554068 | BH14: 3
O15: =-(P21+T21)*R21 -> -16.23668025 | R15: I = | T15: =-T25*R17 -> -0.01455407998 | Y15: =-(Z26+AD26)*AB21 -> 0.01910428771 | AB15: I = | AD15: =-(Z26+AD26)*AB17 -> 0.01043587367 | AI15: =-(AJ25+AN25)*AL21 -> -0.03826585419 | AL15: I = | AN15: =-(AJ25+AN25)*AL17 -> -0.04442656995 | AS15: =-AT26*AV21 -> 0.01760593101 | AV15: I = | AX15: =-(AT21+AX21+AT22)*AV17 -> 2.910867582
T16: =-T23*R17 -> 0.0158560153 | Y16: =-(Z24+AD24)*AB21 -> 0.212164126 | AD16: =-(Z24+AD24)*AB17 -> 0.115896392 | AI16: =-(AJ23+AN23)*AL21 -> -0.5951713269 | AN16: =-(AJ23+AN23)*AL17 -> -0.6909925609 | AS16: =-AT24*AV21 -> 0.2738353956
R17: =(4*R12/BH14)/((4*R12/BH14)+(4*W20/W34)+(4*R26/BH25)+(3*M20/M34)) -> 0.1095523944 | T17: =-(P21+T21)*R17 -> -6.364778659 | Y17: =-(Z21+Z22+AD21+AD22)*AB21 -> -0.2311432693 | AB17: =(4*AB12/BH14)/((4*AB12/BH14)+(4*AG20/AG34)+(4*AB26/BH25)+(4*W20/W34)) -> 0.1279971699 | AD17: =-(Z21+Z22+AD21+AD22)*AB17 -> -0.1262639045 | AI17: =-(AJ21+AN21)*AL21 -> 3.382228255 | AL17: =(4*AL12/BH14)/((4*AL12/BH14)+(4*AL26/BH25)+(4*AG20/AG34)+(4*AQ20/AQ34)) -> 0.1371747829 | AN17: =-(AJ21+AN21)*AL17 -> 3.926759335 | AS17: =-(AT21+AX21+AT22)*AV21 -> 8.486494407 | AV17: =(4*AV12/BH14)/((4*AV12/BH14)+(4*AV26/BH25)+(4*AQ20/AQ34)+(3*BA20/BA34)) -> 0.09924765686
L19: q = | M19: 10 | O19: KN/m | V19: q = | W19: 44.29 | Y19: KN/m | AF19: q = | AG19: 40 | AI19: KN/m | AP19: q = | AQ19: 44.29 | AS19: KN/m | AZ19: q = | BA19: 10 | BC19: KN/m
L20: I = | M20: =(M41*I43^3/12+I43*M41*(((I43*M41*I43/2+M48*(P44-I43)*((P44-I43)/2+I43))/(M41*I43+(P44-I43)*M48))-I43/2)^2+M48*(P44-I43)^3/12+M48*(P44-I43)*(P44-((I43*M41*I43/2+M48*(P44-I43)*((P44-I43)/2+I43))/(M41*I43+(P44-I43)*M48))-(P44-I43)/2)^2)*10000 -> 65.6185021 | O20: dm4 | Q20: =(3*M20/M34)/((4*R12/BH14)+(4*W20/W34)+(4*R26/BH25)+(3*M20/M34)) -> 0.2829357558 | S20: =(4*W20/W34)/((4*R12/BH14)+(4*W20/W34)+(4*R26/BH25)+(3*M20/M34)) -> 0.328041456 | V20: I = | W20: =(W41*S43^3/12+S43*W41*(((S43*W41*S43/2+W48*(Z44-S43)*((Z44-S43)/2+S43))/(W41*S43+(Z44-S43)*W48))-S43/2)^2+W48*(Z44-S43)^3/12+W48*(Z44-S43)*(Z44-((S43*W41*S43/2+W48*(Z44-S43)*((Z44-S43)/2+S43))/(W41*S43+(Z44-S43)*W48))-(Z44-S43)/2)^2)*10000 -> 65.6185021 | Y20: dm4 | AA20: =(4*W20/W34)/((4*AB12/BH14)+(4*AG20/AG34)+(4*AB26/BH25)+(4*W20/W34)) -> 0.2934427137 | AC20: =(4*AG20/AG34)/((4*AB12/BH14)+(4*AG20/AG34)+(4*AB26/BH25)+(4*W20/W34)) -> 0.3442438688 | AF20: I = | AG20: =(AG41*AC43^3/12+AC43*AG41*(((AC43*AG41*AC43/2+AG48*(AJ44-AC43)*((AJ44-AC43)/2+AC43))/(AG41*AC43+(AJ44-AC43)*AG48))-AC43/2)^2+AG48*(AJ44-AC43)^3/12+AG48*(AJ44-AC43)*(AJ44-((AC43*AG41*AC43/2+AG48*(AJ44-AC43)*((AJ44-AC43)/2+AC43))/(AG41*AC43+(AJ44-AC43)*AG48))-(AJ44-AC43)/2)^2)*10000 -> 83.6722348 | AI20: dm4 | AK20: =(4*AG20/AG34)/((4*AL12/BH14)+(4*AL26/BH25)+(4*AG20/AG34)+(4*AQ20/AQ34)) -> 0.368926735 | AM20: =(4*AQ20/AQ34)/((4*AL12/BH14)+(4*AL26/BH25)+(4*AG20/AG34)+(4*AQ20/AQ34)) -> 0.3757459834 | AP20: I = | AQ20: =(AQ41*AM43^3/12+AM43*AQ41*(((AM43*AQ41*AM43/2+AQ48*(AT44-AM43)*((AT44-AM43)/2+AM43))/(AQ41*AM43+(AT44-AM43)*AQ48))-AM43/2)^2+AQ48*(AT44-AM43)^3/12+AQ48*(AT44-AM43)*(AT44-((AM43*AQ41*AM43/2+AQ48*(AT44-AM43)*((AT44-AM43)/2+AM43))/(AQ41*AM43+(AT44-AM43)*AQ48))-(AT44-AM43)/2)^2)*10000 -> 65.6185021 | AS20: dm4 | AU20: =(4*AQ20/AQ34)/((4*AV12/BH14)+(4*AV26/BH25)+(4*AQ20/AQ34)+(3*BA20/BA34)) -> 0.3550783732 | AW20: =(3*BA20/BA34)/((4*AV12/BH14)+(4*AV26/BH25)+(4*AQ20/AQ34)+(3*BA20/BA34)) -> 0.2563222007 | AZ20: I = | BA20: =(BA41*AW43^3/12+AW43*BA41*(((AW43*BA41*AW43/2+BA48*(BD44-AW43)*((BD44-AW43)/2+AW43))/(BA41*AW43+(BD44-AW43)*BA48))-AW43/2)^2+BA48*(BD44-AW43)^3/12+BA48*(BD44-AW43)*(BD44-((AW43*BA41*AW43/2+BA48*(BD44-AW43)*((BD44-AW43)/2+AW43))/(BA41*AW43+(BD44-AW43)*BA48))-(BD44-AW43)/2)^2)*10000 -> 65.6185021 | BC20: dm4
P21: =-M19*M34^2/8 -> -20 | R21: =(4*R26/BH25)/((4*R12/BH14)+(4*W20/W34)+(4*R26/BH25)+(3*M20/M34)) -> 0.2794703938 | T21: =W19*W34^2/12 -> 78.09803333 | Z21: =-W19*W34^2/12 -> -78.09803333 | AB21: =(4*AB26/BH25)/((4*AB12/BH14)+(4*AG20/AG34)+(4*AB26/BH25)+(4*W20/W34)) -> 0.2343162476 | AD21: =AG19*AG34^2/12 -> 83.33333333 | AJ21: =-AG19*AG34^2/12 -> -83.33333333 | AL21: =(4*AL26/BH25)/((4*AL12/BH14)+(4*AL26/BH25)+(4*AG20/AG34)+(4*AQ20/AQ34)) -> 0.1181524986 | AN21: =AQ19*AQ34^2/12 -> 54.70737708 | AT21: =-AQ19*AQ34^2/12 -> -54.70737708 | AV21: =(4*AV26/BH25)/((4*AV12/BH14)+(4*AV26/BH25)+(4*AQ20/AQ34)+(3*BA20/BA34)) -> 0.2893517693 | AX21: =BA19*BA34^2/8 -> 20
P22: =-(P21+T21)*Q20 -> -16.43801097 | T22: =-(P21+T21)*S20 -> -19.05856345 | Z22: =+T22/2 -> -9.529281724 | AD22: =+AJ22/2 -> 5.280440288 | AJ22: =-(AJ21+AN21)*AK20 -> 10.56088058 | AN22: =-(AJ21+AN21)*AM20 -> 10.75608808 | AT22: =+AN22/2 -> 5.378044042
T23: =+Z23/2 -> -0.144734539 | Z23: =-(Z21+Z22+AD21+AD22)*AA20 -> -0.2894690781 | AD23: =-(Z21+Z22+AD21+AD22)*AC20 -> -0.3395823127 | AJ23: =+AD23/2 -> -0.1697911563 | AN23: =+AT23/2 -> 5.207105932 | AT23: =-(AT21+AX21+AT22)*AU20 -> 10.41421186 | AX23: =-(AT21+AX21+AT22)*AW20 -> 7.517759189
P24: =-T23*Q20 -> 0.0409505762 | R24: dm4 | T24: =-T23*S20 -> 0.04747892893 | Z24: =+T24/2 -> 0.02373946446 | AB24: dm4 | AD24: =+AJ24/2 -> -0.9292000468 | AJ24: =-(AJ23+AN23)*AK20 -> -1.858400094 | AL24: dm4 | AN24: =-(AJ23+AN23)*AM20 -> -1.892750794 | AT24: =+AN24/2 -> -0.9463753971 | AV24: dm4 | BH24: m
T25: =+Z25/2 -> 0.1328504052 | Z25: =-(Z24+AD24)*AA20 -> 0.2657008104 | AD25: =-(Z24+AD24)*AC20 -> 0.3116992539 | AJ25: =+AD25/2 -> 0.155849627 | AN25: =+AT25/2 -> 0.1680187182 | AT25: =-AT24*AU20 -> 0.3360374365 | AX25: =-AT24*AW20 -> 0.2425770244 | BH25: 3
P26: =-T25*Q20 -> -0.03758812981 | R26: =T38*R36^3/12*10000 -> 36.45833333 | T26: =-T25*S20 -> -0.04358044036 | Z26: =+T26/2 -> -0.02179022018 | AB26: =AD38*AB36^3/12*10000 -> 34.171875 | AD26: =+AJ26/2 -> -0.05974184559 | AJ26: =-(AJ25+AN25)*AK20 -> -0.1194836912 | AL26: =AN38*AL36^3/12*10000 -> 16.078125 | AN26: =-(AJ25+AN25)*AM20 -> -0.1216922299 | AT26: =+AN26/2 -> -0.06084611493 | AV26: =AX38*AV36^3/12*10000 -> 41.66666667
T27: =+Z27/2 -> 0.01196249531 | Z27: =-(Z26+AD26)*AA20 -> 0.02392499063 | AD27: =-(Z26+AD26)*AC20 -> 0.02806691375 | AJ27: =+AD27/2 -> 0.01403345688 | AN27: =+AT27/2 -> 0.01080256975 | AT27: =-AT26*AU20 -> 0.02160513951 | AX27: =-AT26*AW20 -> 0.01559621008
P28: =-T27*Q20 -> -0.003384617654 | T28: =-T27*S20 -> -0.003924194381 | Z28: =+T28/2 -> -0.00196209719 | AD28: =+AJ28/2 -> -0.004581337108 | AJ28: =-(AJ27+AN27)*AK20 -> -0.009162674216 | AN28: =-(AJ27+AN27)*AM20 -> -0.009332037251 | AT28: =+AN28/2 -> -0.004666018625
R29: I = | T29: =+Z29/2 -> 0.0009600615586 | Z29: =-(Z28+AD28)*AA20 -> 0.001920123117 | AB29: I = | AD29: =-(Z28+AD28)*AC20 -> 0.002252537138 | AJ29: =+AD29/2 -> 0.001126268569 | AL29: I = | AN29: =+AT29/2 -> 0.0008284011514 | AT29: =-AT28*AU20 -> 0.001656802303 | AV29: I = | AX29: =-AT28*AW20 -> 0.001196004162
P30: =-T29*S20 -> -0.0003149399916 | T30: =-T29*S20 -> -0.0003149399916 | AJ30: =-(AJ29+AN29)*AK20 -> -0.0007211299181 | AN30: =-(AJ29+AN29)*AM20 -> -0.0007344592964
P31: =SUM(P21:Q30) -> -36.43834809 | T31: =SUM(T21:U30) -> 59.04016766 | Z31: =SUM(Z21:AA30) -> -87.62525106 | AD31: =SUM(AD21:AE30) -> 87.62268678 | AJ31: =SUM(AJ21:AK30) -> -74.75900215 | AN31: =SUM(AN21:AO30) -> 68.82571127 | AT31: =SUM(AT21:AU30) -> -39.56770933 | AX31: =SUM(AX21:AY30) -> 27.77712843
M34: 4 | O34: m | W34: 4.6 | Y34: m | AG34: 5 | AI34: m | AQ34: 3.85 | AS34: m | BA34: 4 | BC34: m
C36: mesnet genişliği= | H36: 0.25 | J36: m | R36: 0.5 | T36: m | AB36: 0.45 | AD36: m | AL36: 0.35 | AN36: m | AV36: 0.5 | AX36: m | BA36: mesnet genişliği= | BF36: 0.25 | BH36: m
T37: m | AD37: m | AN37: m | AX37: m
T38: 0.35 | AD38: 0.45 | AN38: 0.45 | AX38: 0.4
M41: 0.616 | O41: m | W41: 0.616 | Y41: m | AG41: 1.18 | AI41: m | AQ41: 0.616 | AS41: m | BA41: 0.616 | BC41: m
I43: 0.13 | K43: m | P43: m | S43: 0.13 | U43: m | Z43: m | AC43: 0.13 | AE43: m | AJ43: m | AM43: 0.13 | AO43: m | AT43: m | AW43: 0.13 | AY43: m | BD43: m
P44: 0.6 | Z44: 0.6 | AJ44: 0.6 | AT44: 0.6 | BD44: 0.6
M48: 0.25 | O48: m | W48: 0.25 | Y48: m | AG48: 0.25 | AI48: m | AQ48: 0.25 | AS48: m | BA48: 0.25 | BC48: m
O50: =IF(T12<0,T12/2,"") -> -3.18244621 | U50: =IF(T12>0,T12/2,"") ->  | Y50: =IF(AD12<0,AD12/2,"") ->  | AE50: =IF(AD12>0,AD12/2,"") -> 0.0004529511303 | AI50: =IF(AN12<0,AN12/2,"") ->  | AO50: =IF(AN12>0,AN12/2,"") -> 1.593832598 | AS50: =IF(AX10<0,AX10/2,"") ->  | AY50: =IF(AX10>0,AX10/2,"") -> 1.505647524
F55: moment diyagramı (KNm)
S57: =-T31 -> -59.04016766 | AA57: =IF(Z31=0,"",+Z31) -> -87.62525106 | AU57: =+AT31 -> -39.56770933
AC58: =-AD31 -> -87.62268678 | AK58: =+AJ31 -> -74.75900215 | AM58: =IF(AN31=0,"",-AN31) -> -68.82571127
Q59: =IF(P31=0,"",+P31) -> -36.43834809 | AW59: =IF(AX31=0,"",-AX31) -> -27.77712843
O61: =IF(T12>0,-T12,"") ->  | U61: =IF(T12<0,-T12,"") -> 6.364892421 | Y61: =IF(AD12>0,-AD12,"") -> -0.0009059022606 | AE61: =IF(AD12<0,-AD12,"") ->  | AI61: =IF(AN12>0,-AN12,"") -> -3.187665196 | AO61: =IF(AN12<0,-AN12,"") ->  | AS61: =IF(AX10>0,-AX10,"") -> -3.011295048 | AY61: =IF(AX10<0,-AX10,"") -> 
O62: =IF(O10<0,O10,"") -> -16.23697046 | U62: =IF(O10>0,O10,"") ->  | Y62: =IF(Y12<0,Y12,"") ->  | AE62: =IF(Y12>0,Y12,"") -> 0.001658377436 | AI62: =IF(AI12<0,AI12,"") ->  | AO62: =IF(AI12>0,AI12,"") -> 2.745625686 | AS62: =IF(AS12<0,AS12,"") ->  | AY62: =IF(AS12>0,AS12,"") -> 8.779285854
L64: =IF(M115=0,"",+M115) -> 5.930054742 | BB64: =IF(BA115=0,"",+BA115) -> 8.522588485
W66: =+W115 -> 44.25028151 | AG66: =+AG115 -> 43.89189272 | AQ66: =+AQ115 -> 28.5163322
O73: =IF(O10>0,-O10/2,"") ->  | U73: =IF(O10<0,-O10/2,"") -> 8.118485231 | Y73: =IF(Y12>0,-Y12/2,"") -> -0.0008291887182 | AE73: =IF(Y12<0,-Y12/2,"") ->  | AI73: =IF(AI12>0,-AI12/2,"") -> -1.372812843 | AO73: =IF(AI12<0,-AI12/2,"") ->  | AS73: =IF(AS12>0,-AS12/2,"") -> -4.389642927 | AY73: =IF(AS12<0,-AS12/2,"") -> 
O75: =IF(T12<0,(T12+T12/2)/$BH$14,"") -> -3.18244621 | U75: =IF(T12>0,(T12+T12/2)/$BH$14,"") ->  | Y75: =IF(AD12<0,(AD12+AD12/2)/$BH$14,"") ->  | AE75: =IF(AD12>0,(AD12+AD12/2)/$BH$14,"") -> 0.0004529511303 | AI75: =IF(AN12<0,(AN12+AN12/2)/$BH$14,"") ->  | AO75: =IF(AN12>0,(AN12+AN12/2)/$BH$14,"") -> 1.593832598 | AS75: =IF(AX10<0,(AX10+AX10/2)/$BH$14,"") ->  | AY75: =IF(AX10>0,(AX10+AX10/2)/$BH$14,"") -> 1.505647524
F80: kesme kuvveti diyagramı (KN)
H83: =+M107 -> 10.89041298 | AW83: =+BA107 -> 26.94428211
S84: =+W107 -> 95.65285143 | AC84: =+AG107 -> 102.5727369 | AM84: =+AQ107 -> 92.85773102
O86: =IF(O75<0,O75,"") -> -3.18244621 | U86: =IF(U75>0,U75,"") ->  | Y86: =IF(Y75<0,Y75,"") ->  | AE86: =IF(AE75>0,AE75,"") -> 0.0004529511303 | AI86: =IF(AI75<0,AI75,"") ->  | AO86: =IF(AO75>0,AO75,"") -> 1.593832598 | AS86: =IF(AS75<0,AS75,"") ->  | AY86: =IF(AY75>0,AY75,"") -> 1.505647524
O87: =IF(O98<0,O98,"") -> -8.118485231 | U87: =IF(U98>0,U98,"") ->  | Y87: =IF(Y98<0,Y98,"") ->  | AE87: =IF(AE98>0,AE98,"") -> 0.0008291887182 | AI87: =IF(AI98<0,AI98,"") ->  | AO87: =IF(AO98>0,AO98,"") -> 1.372812843 | AS87: =IF(AS98<0,AS98,"") ->  | AY87: =IF(AY98>0,AY98,"") -> 4.389642927
Q89: =-M108 -> -29.10958702 | AA89: =-W108 -> -108.0811486 | AK89: =-AG108 -> -97.42726307 | AU89: =-AQ108 -> -77.65876898
BF90: =-BA108 -> -13.05571789
J92: x= | K92: =+M114 -> 1.089041298 | M92: m | T92: x= | U92: =+W114 -> 2.159694094 | W92: m | AD92: x= | AE92: =+AG114 -> 2.564318423 | AG92: m | AN92: x= | AO92: =+AQ114 -> 2.096584579 | AQ92: m | BC92: x= | BD92: =+BA34-BA114 -> 1.305571789 | BF92: m
O98: =IF(O10<0,(O10+O10/2)/$BH$25,"") -> -8.118485231 | U98: =IF(O10>0,(O10+O10/2)/$BH$25,"") ->  | Y98: =IF(Y12<0,(Y12+Y12/2)/$BH$25,"") ->  | AE98: =IF(Y12>0,(Y12+Y12/2)/$BH$25,"") -> 0.0008291887182 | AI98: =IF(AI12<0,(AI12+AI12/2)/$BH$25,"") ->  | AO98: =IF(AI12>0,(AI12+AI12/2)/$BH$25,"") -> 1.372812843 | AS98: =IF(AS12<0,(AS12+AS12/2)/$BH$25,"") ->  | AY98: =IF(AS12>0,(AS12+AS12/2)/$BH$25,"") -> 4.389642927
C100: kiriş faydalı yükseklik d = h - d' (m) | I100: =P44-Y3 -> 0.57 | S100: =Z44-Y3 -> 0.57 | AC100: =AJ44-Y3 -> 0.57 | AM100: =AT44-Y3 -> 0.57 | AW100: =BD44-Y3 -> 0.57
I104: yayılı yük = | M104: =+M19 -> 10 | O104: KN/m | S104: yayılı yük = | W104: =+W19 -> 44.29 | Y104: KN/m | AC104: yayılı yük = | AG104: =+AG19 -> 40 | AI104: KN/m | AM104: yayılı yük = | AQ104: =+AQ19 -> 44.29 | AS104: KN/m | AW104: yayılı yük = | BA104: =+BA19 -> 10 | BC104: KN/m
I105: sol moment= | M105: 0 | O105: KNm | S105: sol moment= | W105: =+T31 -> 59.04016766 | Y105: KNm | AC105: sol moment= | AG105: =+AD31 -> 87.62268678 | AI105: KNm | AM105: sol moment= | AQ105: =+AN31 -> 68.82571127 | AS105: KNm | AW105: sol moment= | BA105: =+AX31 -> 27.77712843 | BC105: KNm
I106: sağ moment= | M106: =-P31 -> 36.43834809 | O106: KNm | S106: sağ moment= | W106: =-Z31 -> 87.62525106 | Y106: KNm | AC106: sağ moment= | AG106: =-AJ31 -> 74.75900215 | AI106: KNm | AM106: sağ moment= | AQ106: =-AT31 -> 39.56770933 | AS106: KNm | AW106: sağ moment= | BA106: 0 | BC106: KNm
L107: A= | M107: =(M104*M109*M109/2+M105-M106)/M109 -> 10.89041298 | O107: KN | V107: A= | W107: =(W104*W109*W109/2+W105-W106)/W109 -> 95.65285143 | Y107: KN | AF107: A= | AG107: =(AG104*AG109*AG109/2+AG105-AG106)/AG109 -> 102.5727369 | AI107: KN | AP107: A= | AQ107: =(AQ104*AQ109*AQ109/2+AQ105-AQ106)/AQ109 -> 92.85773102 | AS107: KN | AZ107: A= | BA107: =(BA104*BA109*BA109/2+BA105-BA106)/BA109 -> 26.94428211 | BC107: KN
L108: B= | M108: =M104*M109-M107 -> 29.10958702 | O108: KN | V108: B= | W108: =W104*W109-W107 -> 108.0811486 | Y108: KN | AF108: B= | AG108: =AG104*AG109-AG107 -> 97.42726307 | AI108: KN | AP108: B= | AQ108: =AQ104*AQ109-AQ107 -> 77.65876898 | AS108: KN | AZ108: B= | BA108: =BA104*BA109-BA107 -> 13.05571789 | BC108: KN
L109: L= | M109: =+M34 -> 4 | O109: m | V109: L= | W109: =+W34 -> 4.6 | Y109: m | AF109: L= | AG109: =+AG34 -> 5 | AI109: m | AP109: L= | AQ109: =+AQ34 -> 3.85 | AS109: m | AZ109: L= | BA109: =+BA34 -> 4 | BC109: m
I110: sol mes.gen= | M110: =+H36 -> 0.25 | O110: m | S110: sol mes.gen= | W110: =+R36 -> 0.5 | Y110: m | AC110: sol mes.gen= | AG110: =+AB36 -> 0.45 | AI110: m | AM110: sol mes.gen= | AQ110: =+AL36 -> 0.35 | AS110: m | AW110: sol mes.gen= | BA110: =+AV36 -> 0.5 | BC110: m
I111: sağ mes.gen= | M111: =+R36 -> 0.5 | O111: m | S111: sağ mes.gen= | W111: =+AB36 -> 0.45 | Y111: m | AC111: sağ mes.gen= | AG111: =+AL36 -> 0.35 | AI111: m | AM111: sağ mes.gen= | AQ111: =+AV36 -> 0.5 | AS111: m | AW111: sağ mes.gen= | BA111: =+BF36 -> 0.25 | BC111: m
L112: d= | M112: =+I100 -> 0.57 | O112: m | V112: d= | W112: =+S100 -> 0.57 | Y112: m | AF112: d= | AG112: =+AC100 -> 0.57 | AI112: m | AP112: d= | AQ112: =+AM100 -> 0.57 | AS112: m | AZ112: d= | BA112: =+AW100 -> 0.57 | BC112: m
L113: h= | M113: =+P44 -> 0.6 | O113: m | V113: h= | W113: =+Z44 -> 0.6 | Y113: m | AF113: h= | AG113: =+AJ44 -> 0.6 | AI113: m | AP113: h= | AQ113: =+AT44 -> 0.6 | AS113: m | AZ113: h= | BA113: =+BD44 -> 0.6 | BC113: m
L114: x= | M114: =((M107*M109)/(M107+M108)) -> 1.089041298 | O114: m | V114: x= | W114: =((W107*W109)/(W107+W108)) -> 2.159694094 | Y114: m | AF114: x= | AG114: =((AG107*AG109)/(AG107+AG108)) -> 2.564318423 | AI114: m | AP114: x= | AQ114: =((AQ107*AQ109)/(AQ107+AQ108)) -> 2.096584579 | AS114: m | AZ114: x= | BA114: =((BA107*BA109)/(BA107+BA108)) -> 2.694428211 | BC114: m
K115: Maç= | M115: =((((M105-M106)/M109+M104*M109*0.5)^2/(2*M104))-M105) -> 5.930054742 | O115: KNm | U115: Maç= | W115: =((((W105-W106)/W109+W104*W109*0.5)^2/(2*W104))-W105) -> 44.25028151 | Y115: KNm | AE115: Maç= | AG115: =((((AG105-AG106)/AG109+AG104*AG109*0.5)^2/(2*AG104))-AG105) -> 43.89189272 | AI115: KNm | AO115: Maç= | AQ115: =((((AQ105-AQ106)/AQ109+AQ104*AQ109*0.5)^2/(2*AQ104))-AQ105) -> 28.5163322 | AS115: KNm | AY115: Maç= | BA115: =((((BA105-BA106)/BA109+BA104*BA109*0.5)^2/(2*BA104))-BA105) -> 8.522588485 | BC115: KNm
I116: sol mesnet yüzü kesme kuv. = | M116: =(M107-M104*M110/2) -> 9.640412979 | O116: KN | S116: sol mesnet yüzü kesme kuv. = | W116: =(W107-W104*W110/2) -> 84.58035143 | Y116: KN | AC116: sol mesnet yüzü kesme kuv. = | AG116: =(AG107-AG104*AG110/2) -> 93.57273693 | AI116: KN | AM116: sol mesnet yüzü kesme kuv. = | AQ116: =(AQ107-AQ104*AQ110/2) -> 85.10698102 | AS116: KN | AW116: sol mesnet yüzü kesme kuv. = | BA116: =(BA107-BA104*BA110/2) -> 24.44428211 | BC116: KN
I117: sol mesnet yüzünden d mesafede kesme kuv. = | M117: =(M107-(M104*(M112+M110/2))) -> 3.940412979 | O117: KN | S117: sol mesnet yüzünden d mesafede kesme kuv. = | W117: =(W107-(W104*(W112+W110/2))) -> 59.33505143 | Y117: KN | AC117: sol mesnet yüzünden d mesafede kesme kuv. = | AG117: =(AG107-(AG104*(AG112+AG110/2))) -> 70.77273693 | AI117: KN | AM117: sol mesnet yüzünden d mesafede kesme kuv. = | AQ117: =(AQ107-(AQ104*(AQ112+AQ110/2))) -> 59.86168102 | AS117: KN | AW117: sol mesnet yüzünden d mesafede kesme kuv. = | BA117: =(BA107-(BA104*(BA112+BA110/2))) -> 18.74428211 | BC117: KN
I118: sol mesnet yüzünden 2*h mesafede kesme kuv. = | M118: =(M107-(M104*(2*M113+M110/2))) -> -2.359587021 | O118: KN | S118: sol mesnet yüzünden 2*h mesafede kesme kuv. = | W118: =(W107-(W104*(2*W113+W110/2))) -> 31.43235143 | Y118: KN | AC118: sol mesnet yüzünden 2*h mesafede kesme kuv. = | AG118: =(AG107-(AG104*(2*AG113+AG110/2))) -> 45.57273693 | AI118: KN | AM118: sol mesnet yüzünden 2*h mesafede kesme kuv. = | AQ118: =(AQ107-(AQ104*(2*AQ113+AQ110/2))) -> 31.95898102 | AS118: KN | AW118: sol mesnet yüzünden 2*h mesafede kesme kuv. = | BA118: =(BA107-(BA104*(2*BA113+BA110/2))) -> 12.44428211 | BC118: KN
I119: sol mesnet yüzü moment = | M119: =M105-((M107+M116)/2*M110/2) -> -1.283176622 | O119: KNm | S119: sol mesnet yüzü moment = | W119: =W105-((W107+W116)/2*W110/2) -> 36.5110173 | Y119: KNm | AC119: sol mesnet yüzü moment = | AG119: =AG105-((AG107+AG116)/2*AG110/2) -> 65.55632098 | AI119: KNm | AM119: sol mesnet yüzü moment = | AQ119: =AQ105-((AQ107+AQ116)/2*AQ110/2) -> 53.25379896 | AS119: KNm | AW119: sol mesnet yüzü moment = | BA119: =BA105-((BA107+BA116)/2*BA110/2) -> 21.3535579 | BC119: KNm
I120: sağ mesnet yüzü kesme kuv. = | M120: =(M108-M104*M111/2) -> 26.60958702 | O120: KN | S120: sağ mesnet yüzü kesme kuv. = | W120: =(W108-W104*W111/2) -> 98.11589857 | Y120: KN | AC120: sağ mesnet yüzü kesme kuv. = | AG120: =(AG108-AG104*AG111/2) -> 90.42726307 | AI120: KN | AM120: sağ mesnet yüzü kesme kuv. = | AQ120: =(AQ108-AQ104*AQ111/2) -> 66.58626898 | AS120: KN | AW120: sağ mesnet yüzü kesme kuv. = | BA120: =(BA108-BA104*BA111/2) -> 11.80571789 | BC120: KN
I121: sağ mesnet yüzünden d mesafede kesme kuv. = | M121: =(M108-(M104*(M112+M111/2))) -> 20.90958702 | O121: KN | S121: sağ mesnet yüzünden d mesafede kesme kuv. = | W121: =(W108-(W104*(W112+W111/2))) -> 72.87059857 | Y121: KN | AC121: sağ mesnet yüzünden d mesafede kesme kuv. = | AG121: =(AG108-(AG104*(AG112+AG111/2))) -> 67.62726307 | AI121: KN | AM121: sağ mesnet yüzünden d mesafede kesme kuv. = | AQ121: =(AQ108-(AQ104*(AQ112+AQ111/2))) -> 41.34096898 | AS121: KN | AW121: sağ mesnet yüzünden d mesafede kesme kuv. = | BA121: =(BA108-(BA104*(BA112+BA111/2))) -> 6.105717893 | BC121: KN
I122: sağ mesnet yüzünden 2*h mesafede kesme kuv. = | M122: =(M108-(M104*(2*M113+M111/2))) -> 14.60958702 | O122: KN | S122: sağ mesnet yüzünden 2*h mesafede kesme kuv. = | W122: =(W108-(W104*(2*W113+W111/2))) -> 44.96789857 | Y122: KN | AC122: sağ mesnet yüzünden 2*h mesafede kesme kuv. = | AG122: =(AG108-(AG104*(2*AG113+AG111/2))) -> 42.42726307 | AI122: KN | AM122: sağ mesnet yüzünden 2*h mesafede kesme kuv. = | AQ122: =(AQ108-(AQ104*(2*AQ113+AQ111/2))) -> 13.43826898 | AS122: KN | AW122: sağ mesnet yüzünden 2*h mesafede kesme kuv. = | BA122: =(BA108-(BA104*(2*BA113+BA111/2))) -> -0.194282107 | BC122: KN
I123: sağ mesnet yüzü moment = | M123: =M106-((M108+M120)/2*M111/2) -> 29.47345133 | O123: KNm | S123: sağ mesnet yüzü moment = | W123: =W106-((W108+W120)/2*W111/2) -> 64.42808326 | Y123: KNm | AC123: sağ mesnet yüzü moment = | AG123: =AG106-((AG108+AG120)/2*AG111/2) -> 58.32173111 | AI123: KNm | AM123: sağ mesnet yüzü moment = | AQ123: =AQ106-((AQ108+AQ120)/2*AQ111/2) -> 21.53707959 | AS123: KNm | AW123: sağ mesnet yüzü moment = | BA123: =BA106-((BA108+BA120)/2*BA111/2) -> -1.553839737 | BC123: KNm
C124: kiriş kolon yüzünden d mesafede kesme kuvveti (KN) | I124: --- | O124: =+M121 -> 20.90958702 | S124: =+W117 -> 59.33505143 | Y124: =+W121 -> 72.87059857 | AC124: =+AG117 -> 70.77273693 | AI124: =+AG121 -> 67.62726307 | AM124: =+AQ117 -> 59.86168102 | AS124: =+AQ121 -> 41.34096898 | AW124: =+BA117 -> 18.74428211 | BC124: ---
C129: kiriş kolon yüzünden 2*h mesafede kesme kuvveti (KN) | I129: =+M118 -> -2.359587021 | O129: =+M122 -> 14.60958702 | S129: =+W118 -> 31.43235143 | Y129: =+W122 -> 44.96789857 | AC129: =+AG118 -> 45.57273693 | AI129: =+AG122 -> 42.42726307 | AM129: =+AQ118 -> 31.95898102 | AS129: =+AQ122 -> 13.43826898 | AW129: =+BA118 -> 12.44428211 | BC129: =+BA122 -> -0.194282107
C134: kiriş kolon yüzü kesme kuvveti (KN) | I134: =+M116 -> 9.640412979 | O134: =+M120 -> 26.60958702 | S134: =+W116 -> 84.58035143 | Y134: =+W120 -> 98.11589857 | AC134: =+AG116 -> 93.57273693 | AI134: =+AG120 -> 90.42726307 | AM134: =+AQ116 -> 85.10698102 | AS134: =+AQ120 -> 66.58626898 | AW134: =+BA116 -> 24.44428211 | BC134: =+BA120 -> 11.80571789
C137: kiriş kolon yüzü moment (KNm) | I137: =+M119 -> -1.283176622 | O137: =+M123 -> 29.47345133 | S137: =+W119 -> 36.5110173 | Y137: =+W123 -> 64.42808326 | AC137: =+AG119 -> 65.55632098 | AI137: =+AG123 -> 58.32173111 | AM137: =+AQ119 -> 53.25379896 | AS137: =+AQ123 -> 21.53707959 | AW137: =+BA119 -> 21.3535579 | BC137: =+BA123 -> -1.553839737

Sheet 6_aciklikli
B2: SABİT MESNETLİ ÇERÇEVE CROSS ( 6 açıklıklı ) (inş.müh. Gürcan BERBEROĞLU tel:0532 366 02 04 www.betoncelik.com )
T3: pas payı d ' = | Y3: 0.03 | AA3: m | AG3: dikkat sadece sarı hücrelere rakam giriniz.
R4: 0.5 | T4: m | AB4: 0.5 | AD4: m | AL4: 0.5 | AN4: m | AV4: 0.5 | AX4: m | BF4: 0.5 | BH4: m | BX4: Not : baş ve sonda kirişe oturan mesnet durumunda kirişin kolon yüzü kesme kuvveti dikkate alınır.
T5: m | AD5: m | AN5: m | AX5: m | BH5: m
T6: 0.6 | AD6: 0.6 | AN6: 0.6 | AX6: 0.6 | BH6: 0.6
O10: =SUM(O11:P15) -> -0.3150331437 | R10: dm4 | AB10: dm4 | AL10: dm4 | AV10: dm4 | BF10: dm4 | BH10: =SUM(BH11:BI15) -> -1.06534267
O11: =-T29*R21 -> -6.036240303e-06 | BH11: =-BD29*BF17 -> -8.998991436e-06
O12: =-T27*R21 -> -0.0001007150143 | R12: =T6*R4^3/12*10000 -> 62.5 | T12: =SUM(T13:U17) -> -0.3150331437 | Y12: =SUM(Y13:Z17) -> 0.7788731237 | AB12: =AD6*AB4^3/12*10000 -> 62.5 | AD12: =SUM(AD13:AE17) -> 0.7788731237 | AI12: =SUM(AI13:AJ17) -> 0.7446022925 | AL12: =AN6*AL4^3/12*10000 -> 62.5 | AN12: =SUM(AN13:AO17) -> 0.7446022925 | AS12: =SUM(AS13:AT17) -> -0.2946957202 | AV12: =AX6*AV4^3/12*10000 -> 62.5 | AX12: =SUM(AX13:AY17) -> -0.2946957202 | BC12: =SUM(BC13:BD17) -> -1.06534267 | BF12: =BH6*BF4^3/12*10000 -> 62.5 | BH12: =-BD27*BF17 -> -0.0001025045402
O13: =-T25*R21 -> -0.002433842157 | T13: =-T29*R17 -> -6.036240303e-06 | AI13: =-(AJ29+AN29)*AL21 -> -1.624118183e-05 | AN13: =-(AJ29+AN29)*AL17 -> -1.624118183e-05 | BC13: =-BD29*BF21 -> -8.998991436e-06 | BH13: =-BD25*BF17 -> -0.0003671130226 | BR13: m
O14: =-T23*R21 -> -0.09218078081 | T14: =-T27*R17 -> -0.0001007150143 | Y14: =-(Z28+AD28)*AB21 -> 4.963468255e-05 | AD14: =-(Z28+AD28)*AB17 -> 4.963468255e-05 | AI14: =-(AJ27+AN27)*AL21 -> -0.0002233983146 | AN14: =-(AJ27+AN27)*AL17 -> -0.0002233983146 | AS14: =-(AT28+AX28)*AV21 -> 5.289737485e-05 | AX14: =-(AT28+AX28)*AV17 -> 5.289737485e-05 | BC14: =-BD27*BF21 -> -0.0001025045402 | BH14: =-BD23*BF17 -> 0.05061275402 | BR14: 3.5
O15: =-(P21+T21)*R21 -> -0.2203117695 | R15: I = | T15: =-T25*R17 -> -0.002433842157 | Y15: =-(Z26+AD26)*AB21 -> 0.0008281575142 | AB15: I = | AD15: =-(Z26+AD26)*AB17 -> 0.0008281575142 | AI15: =-(AJ25+AN25)*AL21 -> -0.003291130343 | AL15: I = | AN15: =-(AJ25+AN25)*AL17 -> -0.003291130343 | AS15: =-(AT26+AX26)*AV21 -> 0.0006025365314 | AV15: I = | AX15: =-(AT26+AX26)*AV17 -> 0.0006025365314 | BC15: =-BD25*BF21 -> -0.0003671130226 | BF15: I = | BH15: =-(BD21+BH21)*BF17 -> -1.115476808
T16: =-T23*R17 -> -0.09218078081 | Y16: =-(Z24+AD24)*AB21 -> 0.02001295124 | AD16: =-(Z24+AD24)*AB17 -> 0.02001295124 | AI16: =-(AJ23+AN23)*AL21 -> -0.06021095808 | AN16: =-(AJ23+AN23)*AL17 -> -0.06021095808 | AS16: =-(AT24+AX24)*AV21 -> 0.002157943511 | AX16: =-(AT24+AX24)*AV17 -> 0.002157943511 | BC16: =-BD23*BF21 -> 0.05061275402
R17: =(4*R12/BR14)/((4*R12/BR14)+(4*W20/W34)+(4*R26/BR25)+(3*M20/M34)) -> 0.2643741234 | T17: =-(P21+T21)*R17 -> -0.2203117695 | Y17: =-(Z21+Z22+AD21+AD22)*AB21 -> 0.7579823802 | AB17: =(4*AB12/BR14)/((4*AB12/BR14)+(4*AG20/AG34)+(4*AB26/BR25)+(4*W20/W34)) -> 0.221790949 | AD17: =-(Z21+Z22+AD21+AD22)*AB17 -> 0.7579823802 | AI17: =-(AJ21+AN21)*AL21 -> 0.8083440205 | AL17: =(4*AL12/BR14)/((4*AL12/BR14)+(4*AL26/BR25)+(4*AG20/AG34)+(4*AQ20/AQ34)) -> 0.1839549458 | AN17: =-(AJ21+AN21)*AL17 -> 0.8083440205 | AS17: =-(AT21+AX21+AT22+AX22)*AV21 -> -0.2975090976 | AV17: =(4*AV12/BR14)/((4*AV12/BR14)+(4*AV26/BR25)+(4*AQ20/AQ34)+(4*BA20/BA34)) -> 0.1795298655 | AX17: =-(AT21+AX21+AT22+AX22)*AV17 -> -0.2975090976 | BC17: =-(BD21+BH21)*BF21 -> -1.115476808 | BF17: =(4*BF12/BR14)/((4*BF12/BR14)+(4*BF26/BR25)+(4*BA20/BA34)+(3*BK20/BK34)) -> 0.1975023488
L19: q = | M19: 10 | O19: KN/m | V19: q = | W19: 10 | Y19: KN/m | AF19: q = | AG19: 10 | AI19: KN/m | AP19: q = | AQ19: 10 | AS19: KN/m | AZ19: q = | BA19: 10 | BC19: KN/m | BJ19: q = | BK19: 10 | BM19: KN/m
L20: I = | M20: =(M41*I43^3/12+I43*M41*(((I43*M41*I43/2+M48*(P44-I43)*((P44-I43)/2+I43))/(M41*I43+(P44-I43)*M48))-I43/2)^2+M48*(P44-I43)^3/12+M48*(P44-I43)*(P44-((I43*M41*I43/2+M48*(P44-I43)*((P44-I43)/2+I43))/(M41*I43+(P44-I43)*M48))-(P44-I43)/2)^2)*10000 -> 82.14370748 | O20: dm4 | Q20: =(3*M20/M34)/((4*R12/BR14)+(4*W20/W34)+(4*R26/BR25)+(3*M20/M34)) -> 0.2280250419 | S20: =(4*W20/W34)/((4*R12/BR14)+(4*W20/W34)+(4*R26/BR25)+(3*M20/M34)) -> 0.2432267114 | V20: I = | W20: =(W41*S43^3/12+S43*W41*(((S43*W41*S43/2+W48*(Z44-S43)*((Z44-S43)/2+S43))/(W41*S43+(Z44-S43)*W48))-S43/2)^2+W48*(Z44-S43)^3/12+W48*(Z44-S43)*(Z44-((S43*W41*S43/2+W48*(Z44-S43)*((Z44-S43)/2+S43))/(W41*S43+(Z44-S43)*W48))-(Z44-S43)/2)^2)*10000 -> 82.14370748 | Y20: dm4 | AA20: =(4*W20/W34)/((4*AB12/BR14)+(4*AG20/AG34)+(4*AB26/BR25)+(4*W20/W34)) -> 0.2040497854 | AC20: =(4*AG20/AG34)/((4*AB12/BR14)+(4*AG20/AG34)+(4*AB26/BR25)+(4*W20/W34)) -> 0.3523683166 | AF20: I = | AG20: =(AG41*AC43^3/12+AC43*AG41*(((AC43*AG41*AC43/2+AG48*(AJ44-AC43)*((AJ44-AC43)/2+AC43))/(AG41*AC43+(AJ44-AC43)*AG48))-AC43/2)^2+AG48*(AJ44-AC43)^3/12+AG48*(AJ44-AC43)*(AJ44-((AC43*AG41*AC43/2+AG48*(AJ44-AC43)*((AJ44-AC43)/2+AC43))/(AG41*AC43+(AJ44-AC43)*AG48))-(AJ44-AC43)/2)^2)*10000 -> 127.6666667 | AI20: dm4 | AK20: =(4*AG20/AG34)/((4*AL12/BR14)+(4*AL26/BR25)+(4*AG20/AG34)+(4*AQ20/AQ34)) -> 0.2922567168 | AM20: =(4*AQ20/AQ34)/((4*AL12/BR14)+(4*AL26/BR25)+(4*AG20/AG34)+(4*AQ20/AQ34)) -> 0.3398333916 | AP20: I = | AQ20: =(AQ41*AM43^3/12+AM43*AQ41*(((AM43*AQ41*AM43/2+AQ48*(AT44-AM43)*((AT44-AM43)/2+AM43))/(AQ41*AM43+(AT44-AM43)*AQ48))-AM43/2)^2+AQ48*(AT44-AM43)^3/12+AQ48*(AT44-AM43)*(AT44-((AM43*AQ41*AM43/2+AQ48*(AT44-AM43)*((AT44-AM43)/2+AM43))/(AQ41*AM43+(AT44-AM43)*AQ48))-(AT44-AM43)/2)^2)*10000 -> 127.6666667 | AS20: dm4 | AU20: =(4*AQ20/AQ34)/((4*AV12/BR14)+(4*AV26/BR25)+(4*AQ20/AQ34)+(4*BA20/BA34)) -> 0.331658618 | AW20: =(4*BA20/BA34)/((4*AV12/BR14)+(4*AV26/BR25)+(4*AQ20/AQ34)+(4*BA20/BA34)) -> 0.309281651 | AZ20: I = | BA20: =(BA41*AW43^3/12+AW43*BA41*(((AW43*BA41*AW43/2+BA48*(BD44-AW43)*((BD44-AW43)/2+AW43))/(BA41*AW43+(BD44-AW43)*BA48))-AW43/2)^2+BA48*(BD44-AW43)^3/12+BA48*(BD44-AW43)*(BD44-((AW43*BA41*AW43/2+BA48*(BD44-AW43)*((BD44-AW43)/2+AW43))/(BA41*AW43+(BD44-AW43)*BA48))-(BD44-AW43)/2)^2)*10000 -> 127.6666667 | BC20: dm4 | BE20: =(4*BA20/BA34)/((4*BF12/BR14)+(4*BF26/BR25)+(4*BA20/BA34)+(3*BK20/BK34)) -> 0.3402434038 | BG20: =(3*BK20/BK34)/((4*BF12/BR14)+(4*BF26/BR25)+(4*BA20/BA34)+(3*BK20/BK34)) -> 0.2647518986 | BJ20: I = | BK20: =(BK41*BG43^3/12+BG43*BK41*(((BG43*BK41*BG43/2+BK48*(BN44-BG43)*((BN44-BG43)/2+BG43))/(BK41*BG43+(BN44-BG43)*BK48))-BG43/2)^2+BK48*(BN44-BG43)^3/12+BK48*(BN44-BG43)*(BN44-((BG43*BK41*BG43/2+BK48*(BN44-BG43)*((BN44-BG43)/2+BG43))/(BK41*BG43+(BN44-BG43)*BK48))-(BN44-BG43)/2)^2)*10000 -> 127.6666667 | BM20: dm4
P21: =-M19*M34^2/8 -> -20 | R21: =(4*R26/BR25)/((4*R12/BR14)+(4*W20/W34)+(4*R26/BR25)+(3*M20/M34)) -> 0.2643741234 | T21: =W19*W34^2/12 -> 20.83333333 | Z21: =-W19*W34^2/12 -> -20.83333333 | AB21: =(4*AB26/BR25)/((4*AB12/BR14)+(4*AG20/AG34)+(4*AB26/BR25)+(4*W20/W34)) -> 0.221790949 | AD21: =AG19*AG34^2/12 -> 16.875 | AJ21: =-AG19*AG34^2/12 -> -16.875 | AL21: =(4*AL26/BR25)/((4*AL12/BR14)+(4*AL26/BR25)+(4*AG20/AG34)+(4*AQ20/AQ34)) -> 0.1839549458 | AN21: =AQ19*AQ34^2/12 -> 12.48075 | AT21: =-AQ19*AQ34^2/12 -> -12.48075 | AV21: =(4*AV26/BR25)/((4*AV12/BR14)+(4*AV26/BR25)+(4*AQ20/AQ34)+(4*BA20/BA34)) -> 0.1795298655 | AX21: =BA19*BA34^2/12 -> 14.35208333 | BD21: =-BA19*BA34^2/12 -> -14.35208333 | BF21: =(4*BF26/BR25)/((4*BF12/BR14)+(4*BF26/BR25)+(4*BA20/BA34)+(3*BK20/BK34)) -> 0.1975023488 | BH21: =BK19*BK34^2/8 -> 20
P22: =-(P21+T21)*Q20 -> -0.1900208682 | T22: =-(P21+T21)*S20 -> -0.2026889261 | Z22: =+T22/2 -> -0.1013444631 | AD22: =+AJ22/2 -> 0.6421245389 | AJ22: =-(AJ21+AN21)*AK20 -> 1.284249078 | AN22: =-(AJ21+AN21)*AM20 -> 1.493312881 | AT22: =+AN22/2 -> 0.7466564406 | AX22: =+BD22/2 -> -0.9608331955 | BD22: =-(BD21+BH21)*BE20 -> -1.921666391 | BH22: =-(BD21+BH21)*BG20 -> -1.495296661
T23: =+Z23/2 -> 0.3486755044 | Z23: =-(Z21+Z22+AD21+AD22)*AA20 -> 0.6973510087 | AD23: =-(Z21+Z22+AD21+AD22)*AC20 -> 1.204237488 | AJ23: =+AD23/2 -> 0.6021187441 | AN23: =+AT23/2 -> -0.2748051303 | AT23: =-(AT21+AX21+AT22+AX22)*AU20 -> -0.5496102606 | AX23: =-(AT21+AT22+AX21+AX22)*AW20 -> -0.5125281226 | BD23: =+AX23/2 -> -0.2562640613
P24: =-T23*Q20 -> -0.07950674649 | R24: dm4 | T24: =-T23*S20 -> -0.08480719625 | Z24: =+T24/2 -> -0.04240359813 | AB24: dm4 | AD24: =+AJ24/2 -> -0.04782980107 | AJ24: =-(AJ23+AN23)*AK20 -> -0.09565960214 | AL24: dm4 | AN24: =-(AJ23+AN23)*AM20 -> -0.1112320955 | AT24: =+AN24/2 -> -0.05561604776 | AV24: dm4 | AX24: =+BD24/2 -> 0.04359607824 | BD24: =-BD23*BE20 -> 0.08719215648 | BF24: dm4 | BH24: =-BD23*BG20 -> 0.06784639676 | BR24: m
T25: =+Z25/2 -> 0.00920605287 | Z25: =-(Z24+AD24)*AA20 -> 0.01841210574 | AD25: =-(Z24+AD24)*AC20 -> 0.03179539098 | AJ25: =+AD25/2 -> 0.01589769549 | AN25: =+AT25/2 -> 0.001993263239 | AT25: =-(AT24+AX24)*AU20 -> 0.003986526479 | AX25: =-(AT24+AX24)*AW20 -> 0.003717556017 | BD25: =+AX25/2 -> 0.001858778009 | BR25: 3.5
P26: =-T25*Q20 -> -0.002099210591 | R26: =T38*R36^3/12*10000 -> 62.5 | T26: =-T25*S20 -> -0.002239157964 | Z26: =+T26/2 -> -0.001119578982 | AB26: =AD38*AB36^3/12*10000 -> 62.5 | AD26: =+AJ26/2 -> -0.002614376429 | AJ26: =-(AJ25+AN25)*AK20 -> -0.005228752859 | AL26: =AN38*AL36^3/12*10000 -> 62.5 | AN26: =-(AJ25+AN25)*AM20 -> -0.006079945184 | AT26: =+AN26/2 -> -0.003039972592 | AV26: =AX38*AV36^3/12*10000 -> 62.5 | AX26: =+BD26/2 -> -0.0003162184783 | BD26: =-BD25*BE20 -> -0.0006324369566 | BF26: =BH38*BF36^3/12*10000 -> 62.5 | BH26: =-BD25*BG20 -> -0.0004921150068
T27: =+Z27/2 -> 0.0003809564002 | Z27: =-(Z26+AD26)*AA20 -> 0.0007619128003 | AD27: =-(Z26+AD26)*AC20 -> 0.001315727583 | AJ27: =+AD27/2 -> 0.0006578637913 | AN27: =+AT27/2 -> 0.0005565548461 | AT27: =-(AT26+AX26)*AU20 -> 0.001113109692 | AX27: =-(AT26+AX26)*AW20 -> 0.001038008315 | BD27: =+AX27/2 -> 0.0005190041577
P28: =-T27*Q20 -> -8.68675991e-05 | T28: =-T27*S20 -> -9.265877238e-05 | Z28: =+T28/2 -> -4.632938619e-05 | AD28: =+AJ28/2 -> -0.0001774610019 | AJ28: =-(AJ27+AN27)*AK20 -> -0.0003549220038 | AN28: =-(AJ27+AN27)*AM20 -> -0.0004127000044 | AT28: =+AN28/2 -> -0.0002063500022 | AX28: =+BD28/2 -> -8.82938706e-05 | BD28: =-BD27*BE20 -> -0.0001765877412 | BH28: =-BD27*BG20 -> -0.0001374073361
R29: I = | T29: =+Z29/2 -> 2.283219033e-05 | Z29: =-(Z28+AD28)*AA20 -> 4.566438066e-05 | AB29: I = | AD29: =-(Z28+AD28)*AC20 -> 7.885664232e-05 | AJ29: =+AD29/2 -> 3.942832116e-05 | AL29: I = | AN29: =+AT29/2 -> 4.886058983e-05 | AT29: =-(AT28+AX28)*AU20 -> 9.772117966e-05 | AV29: I = | AX29: =-(AT28+AX28)*AW20 -> 9.112794344e-05 | BD29: =+AX29/2 -> 4.556397172e-05 | BF29: I =
P30: =-T29*S20 -> -5.553398567e-06 | T30: =-T29*S20 -> -5.553398567e-06 | AJ30: =-(AJ29+AN29)*AK20 -> -2.580302726e-05 | AN30: =-(AJ29+AN29)*AM20 -> -3.000352007e-05 | BD30: =-BD29*BE20 -> -1.550284083e-05 | BH30: =-BD29*BG20 -> -1.206314802e-05
P31: =SUM(P21:Q30) -> -20.27171925 | T31: =SUM(T21:U30) -> 20.90178519 | Z31: =SUM(Z21:AA30) -> -20.26167661 | AD31: =SUM(AD21:AE30) -> 18.70393036 | AJ31: =SUM(AJ21:AK30) -> -15.07330627 | AN31: =SUM(AN21:AO30) -> 13.58410169 | AT31: =SUM(AT21:AU30) -> -12.33736883 | AX31: =SUM(AX21:AY30) -> 12.92676027 | BD31: =SUM(BD21:BE30) -> -16.44122281 | BH31: =SUM(BH21:BI30) -> 18.57190815
M34: 4 | O34: m | W34: 5 | Y34: m | AG34: 4.5 | AI34: m | AQ34: 3.87 | AS34: m | BA34: 4.15 | BC34: m | BK34: 4 | BM34: m
C36: mesnet genişliği= | H36: 0.25 | J36: m | R36: 0.5 | T36: m | AB36: 0.5 | AD36: m | AL36: 0.5 | AN36: m | AV36: 0.5 | AX36: m | BF36: 0.5 | BH36: m | BK36: mesnet genişliği= | BP36: 0.25 | BR36: m
T37: m | AD37: m | AN37: m | AX37: m | BH37: m
T38: 0.6 | AD38: 0.6 | AN38: 0.6 | AX38: 0.6 | BH38: 0.6
M41: 1.2 | O41: m | W41: 1.2 | Y41: m | AG41: 1.2 | AI41: m | AQ41: 1.2 | AS41: m | BA41: 1.2 | BC41: m | BK41: 1.2 | BM41: m
I43: 0.1 | K43: m | P43: m | S43: 0.1 | U43: m | Z43: m | AC43: 0.1 | AE43: m | AJ43: m | AM43: 0.1 | AO43: m | AT43: m | AW43: 0.1 | AY43: m | BD43: m | BG43: 0.1 | BI43: m | BN43: m
P44: 0.6 | Z44: 0.6 | AJ44: 0.7 | AT44: 0.7 | BD44: 0.7 | BN44: 0.7
M48: 0.25 | O48: m | W48: 0.25 | Y48: m | AG48: 0.25 | AI48: m | AQ48: 0.25 | AS48: m | BA48: 0.25 | BC48: m | BK48: 0.25 | BM48: m
O50: =IF(T12<0,T12/2,"") -> -0.1575165718 | U50: =IF(T12>0,T12/2,"") ->  | Y50: =IF(AD12<0,AD12/2,"") ->  | AE50: =IF(AD12>0,AD12/2,"") -> 0.3894365618 | AI50: =IF(AN12<0,AN12/2,"") ->  | AO50: =IF(AN12>0,AN12/2,"") -> 0.3723011463 | AS50: =IF(AX12<0,AX12/2,"") -> -0.1473478601 | AY50: =IF(AX12>0,AX12/2,"") ->  | BC50: =IF(BH10<0,BH10/2,"") -> -0.532671335 | BI50: =IF(BH10>0,BH10/2,"") -> 
F55: moment diyagramı (KNm)
S57: =-T31 -> -20.90178519 | AA57: =IF(Z31=0,"",+Z31) -> -20.26167661 | AK57: =IF(AJ31=0,"",+AJ31) -> -15.07330627 | AU57: =+AT31 -> -12.33736883 | BE57: =+BD31 -> -16.44122281
AC58: =-AD31 -> -18.70393036 | AM58: =-AN31 -> -13.58410169 | AW58: =IF(AX31=0,"",-AX31) -> -12.92676027
Q59: =IF(P31=0,"",+P31) -> -20.27171925 | BG59: =IF(BH31=0,"",-BH31) -> -18.57190815
O61: =IF(T12>0,-T12,"") ->  | U61: =IF(T12<0,-T12,"") -> 0.3150331437 | Y61: =IF(AD12>0,-AD12,"") -> -0.7788731237 | AE61: =IF(AD12<0,-AD12,"") ->  | AI61: =IF(AN12>0,-AN12,"") -> -0.7446022925 | AO61: =IF(AN12<0,-AN12,"") ->  | AS61: =IF(AX12>0,-AX12,"") ->  | AY61: =IF(AX12<0,-AX12,"") -> 0.2946957202 | BC61: =IF(BH10>0,-BH10,"") ->  | BI61: =IF(BH10<0,-BH10,"") -> 1.06534267
O62: =IF(O10<0,O10,"") -> -0.3150331437 | U62: =IF(O10>0,O10,"") ->  | Y62: =IF(Y12<0,Y12,"") ->  | AE62: =IF(Y12>0,Y12,"") -> 0.7788731237 | AI62: =IF(AI12<0,AI12,"") ->  | AO62: =IF(AI12>0,AI12,"") -> 0.7446022925 | AS62: =IF(AS12<0,AS12,"") -> -0.2946957202 | AY62: =IF(AS12>0,AS12,"") ->  | BC62: =IF(BC12<0,BC12,"") -> -1.06534267 | BI62: =IF(BC12>0,BC12,"") -> 
L64: =IF(M115=0,"",+M115) -> 11.14833601 | BL64: =IF(BK115=0,"",+BK115) -> 11.79190771
W66: =+W115 -> 10.66908858 | AG66: =+AG115 -> 8.456428427 | AQ66: =+AQ115 -> 5.765578875 | BA66: =+BA115 -> 6.879991919
O73: =IF(O10>0,-O10/2,"") ->  | U73: =IF(O10<0,-O10/2,"") -> 0.1575165718 | Y73: =IF(Y12>0,-Y12/2,"") -> -0.3894365618 | AE73: =IF(Y12<0,-Y12/2,"") ->  | AI73: =IF(AI12>0,-AI12/2,"") -> -0.3723011463 | AO73: =IF(AI12<0,-AI12/2,"") ->  | AS73: =IF(AS12>0,-AS12/2,"") ->  | AY73: =IF(AS12<0,-AS12/2,"") -> 0.1473478601 | BC73: =IF(BC12>0,-BC12/2,"") ->  | BI73: =IF(BC12<0,-BC12/2,"") -> 0.532671335
O75: =IF(T12<0,(T12+T12/2)/$BR$14,"") -> -0.1350142044 | U75: =IF(T12>0,(T12+T12/2)/$BR$14,"") ->  | Y75: =IF(AD12<0,(AD12+AD12/2)/$BR$14,"") ->  | AE75: =IF(AD12>0,(AD12+AD12/2)/$BR$14,"") -> 0.3338027673 | AI75: =IF(AN12<0,(AN12+AN12/2)/$BR$14,"") ->  | AO75: =IF(AN12>0,(AN12+AN12/2)/$BR$14,"") -> 0.3191152682 | AS75: =IF(AX12<0,(AX12+AX12/2)/$BR$14,"") -> -0.1262981658 | AY75: =IF(AX12>0,(AX12+AX12/2)/$BR$14,"") ->  | BC75: =IF(BH10<0,(BH10+BH10/2)/$BR$14,"") -> -0.45657543 | BI75: =IF(BH10>0,(BH10+BH10/2)/$BR$14,"") -> 
F80: kesme kuvveti diyagramı (KN)
H83: =+M107 -> 14.93207019 | BG83: =+BK107 -> 24.64297704
S84: =+W107 -> 25.12802172 | AC84: =+AG107 -> 23.30680535 | AM84: =+AQ107 -> 19.67215319 | AW84: =+BA107 -> 19.90314156
O86: =IF(O75<0,O75,"") -> -0.1350142044 | U86: =IF(U75>0,U75,"") ->  | Y86: =IF(Y75<0,Y75,"") ->  | AE86: =IF(AE75>0,AE75,"") -> 0.3338027673 | AI86: =IF(AI75<0,AI75,"") ->  | AO86: =IF(AO75>0,AO75,"") -> 0.3191152682 | AS86: =IF(AS75<0,AS75,"") -> -0.1262981658 | AY86: =IF(AY75>0,AY75,"") ->  | BC86: =IF(BC75<0,BC75,"") -> -0.45657543 | BI86: =IF(BI75>0,BI75,"") -> 
O87: =IF(O98<0,O98,"") -> -0.1350142044 | U87: =IF(U98>0,U98,"") ->  | Y87: =IF(Y98<0,Y98,"") ->  | AE87: =IF(AE98>0,AE98,"") -> 0.3338027673 | AI87: =IF(AI98<0,AI98,"") ->  | AO87: =IF(AO98>0,AO98,"") -> 0.3191152682 | AS87: =IF(AS98<0,AS98,"") -> -0.1262981658 | AY87: =IF(AY98>0,AY98,"") ->  | BC87: =IF(BC98<0,BC98,"") -> -0.45657543 | BI87: =IF(BI98>0,BI98,"") -> 
Q89: =-M108 -> -25.06792981 | AA89: =-W108 -> -24.87197828 | AK89: =-AG108 -> -21.69319465 | AU89: =-AQ108 -> -19.02784681 | BE89: =-BA108 -> -21.59685844
BP90: =-BK108 -> -15.35702296
J92: x= | K92: =+M114 -> 1.493207019 | M92: m | T92: x= | U92: =+W114 -> 2.512802172 | W92: m | AD92: x= | AE92: =+AG114 -> 2.330680535 | AG92: m | AN92: x= | AO92: =+AQ114 -> 1.967215319 | AQ92: m | AX92: x= | AY92: =+BA114 -> 1.990314156 | BA92: m | BM92: x= | BN92: =+BK34-BK114 -> 1.535702296 | BP92: m
O98: =IF(O10<0,(O10+O10/2)/$BR$25,"") -> -0.1350142044 | U98: =IF(O10>0,(O10+O10/2)/$BR$25,"") ->  | Y98: =IF(Y12<0,(Y12+Y12/2)/$BR$25,"") ->  | AE98: =IF(Y12>0,(Y12+Y12/2)/$BR$25,"") -> 0.3338027673 | AI98: =IF(AI12<0,(AI12+AI12/2)/$BR$25,"") ->  | AO98: =IF(AI12>0,(AI12+AI12/2)/$BR$25,"") -> 0.3191152682 | AS98: =IF(AS12<0,(AS12+AS12/2)/$BR$25,"") -> -0.1262981658 | AY98: =IF(AS12>0,(AS12+AS12/2)/$BR$25,"") ->  | BC98: =IF(BC12<0,(BC12+BC12/2)/$BR$25,"") -> -0.45657543 | BI98: =IF(BC12>0,(BC12+BC12/2)/$BR$25,"") -> 
C100: kiriş faydalı yükseklik d = h - d' (m) | I100: =P44-Y3 -> 0.57 | S100: =Z44-Y3 -> 0.57 | AC100: =AJ44-Y3 -> 0.67 | AM100: =AT44-Y3 -> 0.67 | AW100: =BD44-Y3 -> 0.67 | BG100: =BN44-Y3 -> 0.67
I104: yayılı yük = | M104: =+M19 -> 10 | O104: KN/m | S104: yayılı yük = | W104: =+W19 -> 10 | Y104: KN/m | AC104: yayılı yük = | AG104: =+AG19 -> 10 | AI104: KN/m | AM104: yayılı yük = | AQ104: =+AQ19 -> 10 | AS104: KN/m | AW104: yayılı yük = | BA104: =+BA19 -> 10 | BC104: KN/m | BG104: yayılı yük = | BK104: =+BK19 -> 10 | BM104: KN/m
I105: sol moment= | M105: 0 | O105: KNm | S105: sol moment= | W105: =+T31 -> 20.90178519 | Y105: KNm | AC105: sol moment= | AG105: =+AD31 -> 18.70393036 | AI105: KNm | AM105: sol moment= | AQ105: =+AN31 -> 13.58410169 | AS105: KNm | AW105: sol moment= | BA105: =+AX31 -> 12.92676027 | BC105: KNm | BG105: sol moment= | BK105: =+BH31 -> 18.57190815 | BM105: KNm
I106: sağ moment= | M106: =-P31 -> 20.27171925 | O106: KNm | S106: sağ moment= | W106: =-Z31 -> 20.26167661 | Y106: KNm | AC106: sağ moment= | AG106: =-AJ31 -> 15.07330627 | AI106: KNm | AM106: sağ moment= | AQ106: =-AT31 -> 12.33736883 | AS106: KNm | AW106: sağ moment= | BA106: =-BD31 -> 16.44122281 | BC106: KNm | BG106: sağ moment= | BK106: 0 | BM106: KNm
L107: A= | M107: =(M104*M109*M109/2+M105-M106)/M109 -> 14.93207019 | O107: KN | V107: A= | W107: =(W104*W109*W109/2+W105-W106)/W109 -> 25.12802172 | Y107: KN | AF107: A= | AG107: =(AG104*AG109*AG109/2+AG105-AG106)/AG109 -> 23.30680535 | AI107: KN | AP107: A= | AQ107: =(AQ104*AQ109*AQ109/2+AQ105-AQ106)/AQ109 -> 19.67215319 | AS107: KN | AZ107: A= | BA107: =(BA104*BA109*BA109/2+BA105-BA106)/BA109 -> 19.90314156 | BC107: KN | BJ107: A= | BK107: =(BK104*BK109*BK109/2+BK105-BK106)/BK109 -> 24.64297704 | BM107: KN
L108: B= | M108: =M104*M109-M107 -> 25.06792981 | O108: KN | V108: B= | W108: =W104*W109-W107 -> 24.87197828 | Y108: KN | AF108: B= | AG108: =AG104*AG109-AG107 -> 21.69319465 | AI108: KN | AP108: B= | AQ108: =AQ104*AQ109-AQ107 -> 19.02784681 | AS108: KN | AZ108: B= | BA108: =BA104*BA109-BA107 -> 21.59685844 | BC108: KN | BJ108: B= | BK108: =BK104*BK109-BK107 -> 15.35702296 | BM108: KN
L109: L= | M109: =+M34 -> 4 | O109: m | V109: L= | W109: =+W34 -> 5 | Y109: m | AF109: L= | AG109: =+AG34 -> 4.5 | AI109: m | AP109: L= | AQ109: =+AQ34 -> 3.87 | AS109: m | AZ109: L= | BA109: =+BA34 -> 4.15 | BC109: m | BJ109: L= | BK109: =+BK34 -> 4 | BM109: m
I110: sol mes.gen= | M110: =+H36 -> 0.25 | O110: m | S110: sol mes.gen= | W110: =+R36 -> 0.5 | Y110: m | AC110: sol mes.gen= | AG110: =+AB36 -> 0.5 | AI110: m | AM110: sol mes.gen= | AQ110: =+AL36 -> 0.5 | AS110: m | AW110: sol mes.gen= | BA110: =+AV36 -> 0.5 | BC110: m | BG110: sol mes.gen= | BK110: =+BF36 -> 0.5 | BM110: m
I111: sağ mes.gen= | M111: =+R36 -> 0.5 | O111: m | S111: sağ mes.gen= | W111: =+AB36 -> 0.5 | Y111: m | AC111: sağ mes.gen= | AG111: =+AL36 -> 0.5 | AI111: m | AM111: sağ mes.gen= | AQ111: =+AV36 -> 0.5 | AS111: m | AW111: sağ mes.gen= | BA111: =+BF36 -> 0.5 | BC111: m | BG111: sağ mes.gen= | BK111: =+BP36 -> 0.25 | BM111: m
L112: d= | M112: =+I100 -> 0.57 | O112: m | V112: d= | W112: =+S100 -> 0.57 | Y112: m | AF112: d= | AG112: =+AC100 -> 0.67 | AI112: m | AP112: d= | AQ112: =+AM100 -> 0.67 | AS112: m | AZ112: d= | BA112: =+AW100 -> 0.67 | BC112: m | BJ112: d= | BK112: =+BG100 -> 0.67 | BM112: m
L113: h= | M113: =+P44 -> 0.6 | O113: m | V113: h= | W113: =+Z44 -> 0.6 | Y113: m | AF113: h= | AG113: =+AJ44 -> 0.7 | AI113: m | AP113: h= | AQ113: =+AT44 -> 0.7 | AS113: m | AZ113: h= | BA113: =+BD44 -> 0.7 | BC113: m | BJ113: h= | BK113: =+BN44 -> 0.7 | BM113: m
L114: x= | M114: =((M107*M109)/(M107+M108)) -> 1.493207019 | O114: m | V114: x= | W114: =((W107*W109)/(W107+W108)) -> 2.512802172 | Y114: m | AF114: x= | AG114: =((AG107*AG109)/(AG107+AG108)) -> 2.330680535 | AI114: m | AP114: x= | AQ114: =((AQ107*AQ109)/(AQ107+AQ108)) -> 1.967215319 | AS114: m | AZ114: x= | BA114: =((BA107*BA109)/(BA107+BA108)) -> 1.990314156 | BC114: m | BJ114: x= | BK114: =((BK107*BK109)/(BK107+BK108)) -> 2.464297704 | BM114: m
K115: Maç= | M115: =((((M105-M106)/M109+M104*M109*0.5)^2/(2*M104))-M105) -> 11.14833601 | O115: KNm | U115: Maç= | W115: =((((W105-W106)/W109+W104*W109*0.5)^2/(2*W104))-W105) -> 10.66908858 | Y115: KNm | AE115: Maç= | AG115: =((((AG105-AG106)/AG109+AG104*AG109*0.5)^2/(2*AG104))-AG105) -> 8.456428427 | AI115: KNm | AO115: Maç= | AQ115: =((((AQ105-AQ106)/AQ109+AQ104*AQ109*0.5)^2/(2*AQ104))-AQ105) -> 5.765578875 | AS115: KNm | AY115: Maç= | BA115: =((((BA105-BA106)/BA109+BA104*BA109*0.5)^2/(2*BA104))-BA105) -> 6.879991919 | BC115: KNm | BI115: Maç= | BK115: =((((BK105-BK106)/BK109+BK104*BK109*0.5)^2/(2*BK104))-BK105) -> 11.79190771 | BM115: KNm
I116: sol mesnet yüzü kesme kuv. = | M116: =(M107-M104*M110/2) -> 13.68207019 | O116: KN | S116: sol mesnet yüzü kesme kuv. = | W116: =(W107-W104*W110/2) -> 22.62802172 | Y116: KN | AC116: sol mesnet yüzü kesme kuv. = | AG116: =(AG107-AG104*AG110/2) -> 20.80680535 | AI116: KN | AM116: sol mesnet yüzü kesme kuv. = | AQ116: =(AQ107-AQ104*AQ110/2) -> 17.17215319 | AS116: KN | AW116: sol mesnet yüzü kesme kuv. = | BA116: =(BA107-BA104*BA110/2) -> 17.40314156 | BC116: KN | BG116: sol mesnet yüzü kesme kuv. = | BK116: =(BK107-BK104*BK110/2) -> 22.14297704 | BM116: KN
I117: sol mesnet yüzünden d mesafede kesme kuv. = | M117: =(M107-(M104*(M112+M110/2))) -> 7.982070188 | O117: KN | S117: sol mesnet yüzünden d mesafede kesme kuv. = | W117: =(W107-(W104*(W112+W110/2))) -> 16.92802172 | Y117: KN | AC117: sol mesnet yüzünden d mesafede kesme kuv. = | AG117: =(AG107-(AG104*(AG112+AG110/2))) -> 14.10680535 | AI117: KN | AM117: sol mesnet yüzünden d mesafede kesme kuv. = | AQ117: =(AQ107-(AQ104*(AQ112+AQ110/2))) -> 10.47215319 | AS117: KN | AW117: sol mesnet yüzünden d mesafede kesme kuv. = | BA117: =(BA107-(BA104*(BA112+BA110/2))) -> 10.70314156 | BC117: KN | BG117: sol mesnet yüzünden d mesafede kesme kuv. = | BK117: =(BK107-(BK104*(BK112+BK110/2))) -> 15.44297704 | BM117: KN
I118: sol mesnet yüzünden 2*h mesafede kesme kuv. = | M118: =(M107-(M104*(2*M113+M110/2))) -> 1.682070188 | O118: KN | S118: sol mesnet yüzünden 2*h mesafede kesme kuv. = | W118: =(W107-(W104*(2*W113+W110/2))) -> 10.62802172 | Y118: KN | AC118: sol mesnet yüzünden 2*h mesafede kesme kuv. = | AG118: =(AG107-(AG104*(2*AG113+AG110/2))) -> 6.806805354 | AI118: KN | AM118: sol mesnet yüzünden 2*h mesafede kesme kuv. = | AQ118: =(AQ107-(AQ104*(2*AQ113+AQ110/2))) -> 3.172153192 | AS118: KN | AW118: sol mesnet yüzünden 2*h mesafede kesme kuv. = | BA118: =(BA107-(BA104*(2*BA113+BA110/2))) -> 3.403141557 | BC118: KN | BG118: sol mesnet yüzünden 2*h mesafede kesme kuv. = | BK118: =(BK107-(BK104*(2*BK113+BK110/2))) -> 8.142977038 | BM118: KN
I119: sol mesnet yüzü moment = | M119: =M105-((M107+M116)/2*M110/2) -> -1.788383774 | O119: KNm | S119: sol mesnet yüzü moment = | W119: =W105-((W107+W116)/2*W110/2) -> 14.93227976 | Y119: KNm | AC119: sol mesnet yüzü moment = | AG119: =AG105-((AG107+AG116)/2*AG110/2) -> 13.18972903 | AI119: KNm | AM119: sol mesnet yüzü moment = | AQ119: =AQ105-((AQ107+AQ116)/2*AQ110/2) -> 8.978563387 | AS119: KNm | AW119: sol mesnet yüzü moment = | BA119: =BA105-((BA107+BA116)/2*BA110/2) -> 8.263474884 | BC119: KNm | BG119: sol mesnet yüzü moment = | BK119: =BK105-((BK107+BK116)/2*BK110/2) -> 12.72366389 | BM119: KNm
I120: sağ mesnet yüzü kesme kuv. = | M120: =(M108-M104*M111/2) -> 22.56792981 | O120: KN | S120: sağ mesnet yüzü kesme kuv. = | W120: =(W108-W104*W111/2) -> 22.37197828 | Y120: KN | AC120: sağ mesnet yüzü kesme kuv. = | AG120: =(AG108-AG104*AG111/2) -> 19.19319465 | AI120: KN | AM120: sağ mesnet yüzü kesme kuv. = | AQ120: =(AQ108-AQ104*AQ111/2) -> 16.52784681 | AS120: KN | AW120: sağ mesnet yüzü kesme kuv. = | BA120: =(BA108-BA104*BA111/2) -> 19.09685844 | BC120: KN | BG120: sağ mesnet yüzü kesme kuv. = | BK120: =(BK108-BK104*BK111/2) -> 14.10702296 | BM120: KN
I121: sağ mesnet yüzünden d mesafede kesme kuv. = | M121: =(M108-(M104*(M112+M111/2))) -> 16.86792981 | O121: KN | S121: sağ mesnet yüzünden d mesafede kesme kuv. = | W121: =(W108-(W104*(W112+W111/2))) -> 16.67197828 | Y121: KN | AC121: sağ mesnet yüzünden d mesafede kesme kuv. = | AG121: =(AG108-(AG104*(AG112+AG111/2))) -> 12.49319465 | AI121: KN | AM121: sağ mesnet yüzünden d mesafede kesme kuv. = | AQ121: =(AQ108-(AQ104*(AQ112+AQ111/2))) -> 9.827846808 | AS121: KN | AW121: sağ mesnet yüzünden d mesafede kesme kuv. = | BA121: =(BA108-(BA104*(BA112+BA111/2))) -> 12.39685844 | BC121: KN | BG121: sağ mesnet yüzünden d mesafede kesme kuv. = | BK121: =(BK108-(BK104*(BK112+BK111/2))) -> 7.407022962 | BM121: KN
I122: sağ mesnet yüzünden 2*h mesafede kesme kuv. = | M122: =(M108-(M104*(2*M113+M111/2))) -> 10.56792981 | O122: KN | S122: sağ mesnet yüzünden 2*h mesafede kesme kuv. = | W122: =(W108-(W104*(2*W113+W111/2))) -> 10.37197828 | Y122: KN | AC122: sağ mesnet yüzünden 2*h mesafede kesme kuv. = | AG122: =(AG108-(AG104*(2*AG113+AG111/2))) -> 5.193194646 | AI122: KN | AM122: sağ mesnet yüzünden 2*h mesafede kesme kuv. = | AQ122: =(AQ108-(AQ104*(2*AQ113+AQ111/2))) -> 2.527846808 | AS122: KN | AW122: sağ mesnet yüzünden 2*h mesafede kesme kuv. = | BA122: =(BA108-(BA104*(2*BA113+BA111/2))) -> 5.096858443 | BC122: KN | BG122: sağ mesnet yüzünden 2*h mesafede kesme kuv. = | BK122: =(BK108-(BK104*(2*BK113+BK111/2))) -> 0.1070229623 | BM122: KN
I123: sağ mesnet yüzü moment = | M123: =M106-((M108+M120)/2*M111/2) -> 14.31723679 | O123: KNm | S123: sağ mesnet yüzü moment = | W123: =W106-((W108+W120)/2*W111/2) -> 14.35618204 | Y123: KNm | AC123: sağ mesnet yüzü moment = | AG123: =AG106-((AG108+AG120)/2*AG111/2) -> 9.962507609 | AI123: KNm | AM123: sağ mesnet yüzü moment = | AQ123: =AQ106-((AQ108+AQ120)/2*AQ111/2) -> 7.892907131 | AS123: KNm | AW123: sağ mesnet yüzü moment = | BA123: =BA106-((BA108+BA120)/2*BA111/2) -> 11.3545082 | BC123: KNm | BG123: sağ mesnet yüzü moment = | BK123: =BK106-((BK108+BK120)/2*BK111/2) -> -1.84150287 | BM123: KNm
C124: kiriş kolon yüzünden d mesafede kesme kuvveti (KN) | I124: --- | O124: =+M121 -> 16.86792981 | S124: =+W117 -> 16.92802172 | Y124: =+W121 -> 16.67197828 | AC124: =+AG117 -> 14.10680535 | AI124: =+AG121 -> 12.49319465 | AM124: =+AQ117 -> 10.47215319 | AS124: =+AQ121 -> 9.827846808 | AW124: =+BA117 -> 10.70314156 | BC124: =+BA121 -> 12.39685844 | BG124: =+BK117 -> 15.44297704 | BM124: ---
C129: kiriş kolon yüzünden 2*h mesafede kesme kuvveti (KN) | I129: =+M118 -> 1.682070188 | O129: =+M122 -> 10.56792981 | S129: =+W118 -> 10.62802172 | Y129: =+W122 -> 10.37197828 | AC129: =+AG118 -> 6.806805354 | AI129: =+AG122 -> 5.193194646 | AM129: =+AQ118 -> 3.172153192 | AS129: =+AQ122 -> 2.527846808 | AW129: =+BA118 -> 3.403141557 | BC129: =+BA122 -> 5.096858443 | BG129: =+BK118 -> 8.142977038 | BM129: =+BK122 -> 0.1070229623
C134: kiriş kolon yüzü kesme kuvveti (KN) | I134: =+M116 -> 13.68207019 | O134: =+M120 -> 22.56792981 | S134: =+W116 -> 22.62802172 | Y134: =+W120 -> 22.37197828 | AC134: =+AG116 -> 20.80680535 | AI134: =+AG120 -> 19.19319465 | AM134: =+AQ116 -> 17.17215319 | AS134: =+AQ120 -> 16.52784681 | AW134: =+BA116 -> 17.40314156 | BC134: =+BA120 -> 19.09685844 | BG134: =+BK116 -> 22.14297704 | BM134: =+BK120 -> 14.10702296
C137: kiriş kolon yüzü moment (KNm) | I137: =+M119 -> -1.788383774 | O137: =+M123 -> 14.31723679 | S137: =+W119 -> 14.93227976 | Y137: =+W123 -> 14.35618204 | AC137: =+AG119 -> 13.18972903 | AI137: =+AG123 -> 9.962507609 | AM137: =+AQ119 -> 8.978563387 | AS137: =+AQ123 -> 7.892907131 | AW137: =+BA119 -> 8.263474884 | BC137: =+BA123 -> 11.3545082 | BG137: =+BK119 -> 12.72366389 | BM137: =+BK123 -> -1.84150287

Sheet 7_aciklikli
B2: SABİT MESNETLİ ÇERÇEVE CROSS ( 7 açıklıklı ) (inş.müh. Gürcan BERBEROĞLU tel:0532 366 02 04 www.betoncelik.com )
T3: pas payı d ' = | Y3: 0.03 | AA3: m | AG3: dikkat sadece sarı hücrelere rakam giriniz.
R4: 0.5 | T4: m | AB4: 0.5 | AD4: m | AL4: 0.5 | AN4: m | AV4: 0.5 | AX4: m | BF4: 0.5 | BH4: m | BP4: 0.5 | BR4: m | CH4: Not : baş ve sonda kirişe oturan mesnet durumunda kirişin kolon yüzü kesme kuvveti dikkate alınır.
T5: m | AD5: m | AN5: m | AX5: m | BH5: m | BR5: m
T6: 0.6 | AD6: 0.6 | AN6: 0.6 | AX6: 0.6 | BH6: 0.6 | BR6: 0.6
O10: =SUM(O11:P15) -> -1.670447634 | R10: dm4 | AB10: dm4 | AL10: dm4 | AV10: dm4 | BF10: dm4 | BP10: dm4 | BR10: =SUM(BR11:BS15) -> 4.71934467
O11: =-T29*R21 -> 2.648445528e-05
O12: =-T27*R21 -> 0.0005471219558 | R12: =T6*R4^3/12*10000 -> 62.5 | T12: =SUM(T13:U17) -> -1.670447634 | Y12: =SUM(Y13:Z17) -> -1.158592999 | AB12: =AD6*AB4^3/12*10000 -> 62.5 | AD12: =SUM(AD13:AE17) -> -1.158592999 | AI12: =SUM(AI13:AJ17) -> 3.969679098 | AL12: =AN6*AL4^3/12*10000 -> 62.5 | AN12: =SUM(AN13:AO17) -> 3.969679098 | AS12: =SUM(AS13:AT17) -> -1.206227626 | AV12: =AX6*AV4^3/12*10000 -> 62.5 | AX12: =SUM(AX13:AY17) -> -1.206227626 | BC12: =SUM(BC13:BD17) -> -4.522274481 | BF12: =BH6*BF4^3/12*10000 -> 62.5 | BH12: =SUM(BH13:BI17) -> -4.522274481 | BM12: =SUM(BM13:BN17) -> 4.71934467 | BP12: =BR6*BP4^3/12*10000 -> 62.5 | BR12: =-BN28*BP17 -> 3.225110138e-06
O13: =-T25*R21 -> 0.01233804963 | T13: =-T29*R17 -> 2.648445528e-05 | AI13: =-(AJ29+AN29)*AL21 -> 3.956495349e-05 | AN13: =-(AJ29+AN29)*AL17 -> 3.956495349e-05 | BC13: =-(BD29+BH29)*BF21 -> 1.637044329e-05 | BH13: =-(BD29+BH29)*BF17 -> 1.637044329e-05 | BR13: =-BN26*BP17 -> 0.001095124331 | CB13: m
O14: =-T23*R21 -> 0.1725367639 | T14: =-T27*R17 -> 0.0005471219558 | Y14: =-(Z28+AD28)*AB21 -> -0.000165462205 | AD14: =-(Z28+AD28)*AB17 -> -0.000165462205 | AI14: =-(AJ27+AN27)*AL21 -> 0.0005542591485 | AN14: =-(AJ27+AN27)*AL17 -> 0.0005542591485 | AS14: =-(AT28+AX28)*AV21 -> -0.0001001298525 | AX14: =-(AT28+AX28)*AV17 -> -0.0001001298525 | BC14: =-(BD27+BH27)*BF21 -> -2.268630312e-05 | BH14: =-(BD27+BH27)*BF17 -> -2.268630312e-05 | BM14: =-BN28*BP21 -> 3.225110138e-06 | BR14: =-BN24*BP17 -> 0.06228359225 | CB14: 3.8
O15: =-(P21+T21)*R21 -> -1.855896054 | R15: I = | T15: =-T25*R17 -> 0.01233804963 | Y15: =-(Z26+AD26)*AB21 -> -0.003418156207 | AB15: I = | AD15: =-(Z26+AD26)*AB17 -> -0.003418156207 | AI15: =-(AJ25+AN25)*AL21 -> 0.01006937443 | AL15: I = | AN15: =-(AJ25+AN25)*AL17 -> 0.01006937443 | AS15: =-(AT26+AX26)*AV21 -> -0.0007609067629 | AV15: I = | AX15: =-(AT26+AX26)*AV17 -> -0.0007609067629 | BC15: =-(BD25+BH25)*BF21 -> -0.007703402814 | BF15: I = | BH15: =-(BD25+BH25)*BF17 -> -0.007703402814 | BM15: =-BN26*BP21 -> 0.001095124331 | BP15: I = | BR15: =-(BN21+BR21+BN22)*BP17 -> 4.655962728
T16: =-T23*R17 -> 0.1725367639 | Y16: =-(Z24+AD24)*AB21 -> -0.07708223091 | AD16: =-(Z24+AD24)*AB17 -> -0.07708223091 | AI16: =-(AJ23+AN23)*AL21 -> 0.3680011902 | AN16: =-(AJ23+AN23)*AL17 -> 0.3680011902 | AS16: =-(AT24+AX24)*AV21 -> -0.005083122024 | AX16: =-(AT24+AX24)*AV17 -> -0.005083122024 | BC16: =-(BD23+BH23)*BF21 -> -0.4381197518 | BH16: =-(BD23+BH23)*BF17 -> -0.4381197518 | BM16: =-BN24*BP21 -> 0.06228359225
R17: =(4*R12/CB14)/((4*R12/CB14)+(4*W20/W34)+(4*R26/CB25)+(3*M20/M34)) -> 0.1855896054 | T17: =-(P21+T21)*R17 -> -1.855896054 | Y17: =-(Z21+Z22+AD21+AD22)*AB21 -> -1.07792715 | AB17: =(4*AB12/CB14)/((4*AB12/CB14)+(4*AG20/AG34)+(4*AB26/CB25)+(4*W20/W34)) -> 0.1992584633 | AD17: =-(Z21+Z22+AD21+AD22)*AB17 -> -1.07792715 | AI17: =-(AJ21+AN21)*AL21 -> 3.591014709 | AL17: =(4*AL12/CB14)/((4*AL12/CB14)+(4*AL26/CB25)+(4*AG20/AG34)+(4*AQ20/AQ34)) -> 0.1814407432 | AN17: =-(AJ21+AN21)*AL17 -> 3.591014709 | AS17: =-(AT21+AX21+AT22+AX22)*AV21 -> -1.200283467 | AV17: =(4*AV12/CB14)/((4*AV12/CB14)+(4*AV26/CB25)+(4*AQ20/AQ34)+(4*BA20/BA34)) -> 0.1682745043 | AX17: =-(AT21+AX21+AT22+AX22)*AV17 -> -1.200283467 | BC17: =-(BD21+BH21)*BF21 -> -4.076445011 | BF17: =(4*BF12/CB14)/((4*BF12/CB14)+(4*BF26/CB25)+(4*BA20/BA34)+(4*BK20/BK34)) -> 0.1946958811 | BH17: =-(BD21+BH21)*BF17 -> -4.076445011 | BM17: =-(BN21+BR21+BN22)*BP21 -> 4.655962728 | BP17: =(4*BP12/CB14)/((4*BP12/CB14)+(4*BP26/CB25)+(4*BK20/BK34)+(3*BU20/BU34)) -> 0.2014616593
L19: q = | M19: 10 | O19: KN/m | V19: q = | W19: 15 | Y19: KN/m | AF19: q = | AG19: 10 | AI19: KN/m | AP19: q = | AQ19: 10 | AS19: KN/m | AZ19: q = | BA19: 10 | BC19: KN/m | BJ19: q = | BK19: 15 | BM19: KN/m | BT19: q = | BU19: 10 | BW19: KN/m
L20: I = | M20: =(M41*I43^3/12+I43*M41*(((I43*M41*I43/2+M48*(P44-I43)*((P44-I43)/2+I43))/(M41*I43+(P44-I43)*M48))-I43/2)^2+M48*(P44-I43)^3/12+M48*(P44-I43)*(P44-((I43*M41*I43/2+M48*(P44-I43)*((P44-I43)/2+I43))/(M41*I43+(P44-I43)*M48))-(P44-I43)/2)^2)*10000 -> 127.6666667 | O20: dm4 | Q20: =(3*M20/M34)/((4*R12/CB14)+(4*W20/W34)+(4*R26/CB25)+(3*M20/M34)) -> 0.308693842 | S20: =(4*W20/W34)/((4*R12/CB14)+(4*W20/W34)+(4*R26/CB25)+(3*M20/M34)) -> 0.3201269472 | V20: I = | W20: =(W41*S43^3/12+S43*W41*(((S43*W41*S43/2+W48*(Z44-S43)*((Z44-S43)/2+S43))/(W41*S43+(Z44-S43)*W48))-S43/2)^2+W48*(Z44-S43)^3/12+W48*(Z44-S43)*(Z44-((S43*W41*S43/2+W48*(Z44-S43)*((Z44-S43)/2+S43))/(W41*S43+(Z44-S43)*W48))-(Z44-S43)/2)^2)*10000 -> 127.6666667 | Y20: dm4 | AA20: =(4*W20/W34)/((4*AB12/CB14)+(4*AG20/AG34)+(4*AB26/CB25)+(4*W20/W34)) -> 0.3437046134 | AC20: =(4*AG20/AG34)/((4*AB12/CB14)+(4*AG20/AG34)+(4*AB26/CB25)+(4*W20/W34)) -> 0.25777846 | AF20: I = | AG20: =(AG41*AC43^3/12+AC43*AG41*(((AC43*AG41*AC43/2+AG48*(AJ44-AC43)*((AJ44-AC43)/2+AC43))/(AG41*AC43+(AJ44-AC43)*AG48))-AC43/2)^2+AG48*(AJ44-AC43)^3/12+AG48*(AJ44-AC43)*(AJ44-((AC43*AG41*AC43/2+AG48*(AJ44-AC43)*((AJ44-AC43)/2+AC43))/(AG41*AC43+(AJ44-AC43)*AG48))-(AJ44-AC43)/2)^2)*10000 -> 127.6666667 | AI20: dm4 | AK20: =(4*AG20/AG34)/((4*AL12/CB14)+(4*AL26/CB25)+(4*AG20/AG34)+(4*AQ20/AQ34)) -> 0.2347278734 | AM20: =(4*AQ20/AQ34)/((4*AL12/CB14)+(4*AL26/CB25)+(4*AG20/AG34)+(4*AQ20/AQ34)) -> 0.4023906402 | AP20: I = | AQ20: =(AQ41*AM43^3/12+AM43*AQ41*(((AM43*AQ41*AM43/2+AQ48*(AT44-AM43)*((AT44-AM43)/2+AM43))/(AQ41*AM43+(AT44-AM43)*AQ48))-AM43/2)^2+AQ48*(AT44-AM43)^3/12+AQ48*(AT44-AM43)*(AT44-((AM43*AQ41*AM43/2+AQ48*(AT44-AM43)*((AT44-AM43)/2+AM43))/(AQ41*AM43+(AT44-AM43)*AQ48))-(AT44-AM43)/2)^2)*10000 -> 127.6666667 | AS20: dm4 | AU20: =(4*AQ20/AQ34)/((4*AV12/CB14)+(4*AV26/CB25)+(4*AQ20/AQ34)+(4*BA20/BA34)) -> 0.3731911826 | AW20: =(4*BA20/BA34)/((4*AV12/CB14)+(4*AV26/CB25)+(4*AQ20/AQ34)+(4*BA20/BA34)) -> 0.2902598087 | AZ20: I = | BA20: =(BA41*AW43^3/12+AW43*BA41*(((AW43*BA41*AW43/2+BA48*(BD44-AW43)*((BD44-AW43)/2+AW43))/(BA41*AW43+(BD44-AW43)*BA48))-AW43/2)^2+BA48*(BD44-AW43)^3/12+BA48*(BD44-AW43)*(BD44-((AW43*BA41*AW43/2+BA48*(BD44-AW43)*((BD44-AW43)/2+AW43))/(BA41*AW43+(BD44-AW43)*BA48))-(BD44-AW43)/2)^2)*10000 -> 127.6666667 | BC20: dm4 | BE20: =(4*BA20/BA34)/((4*BF12/CB14)+(4*BF26/CB25)+(4*BA20/BA34)+(4*BK20/BK34)) -> 0.3358345308 | BG20: =(4*BK20/BK34)/((4*BF12/CB14)+(4*BF26/CB25)+(4*BA20/BA34)+(4*BK20/BK34)) -> 0.274773707 | BJ20: I = | BK20: =(BK41*BG43^3/12+BG43*BK41*(((BG43*BK41*BG43/2+BK48*(BN44-BG43)*((BN44-BG43)/2+BG43))/(BK41*BG43+(BN44-BG43)*BK48))-BG43/2)^2+BK48*(BN44-BG43)^3/12+BK48*(BN44-BG43)*(BN44-((BG43*BK41*BG43/2+BK48*(BN44-BG43)*((BN44-BG43)/2+BG43))/(BK41*BG43+(BN44-BG43)*BK48))-(BN44-BG43)/2)^2)*10000 -> 127.6666667 | BM20: dm4 | BO20: =(4*BK20/BK34)/((4*BP12/CB14)+(4*BP26/CB25)+(4*BK20/BK34)+(3*BU20/BU34)) -> 0.2843222293 | BQ20: =(3*BU20/BU34)/((4*BP12/CB14)+(4*BP26/CB25)+(4*BK20/BK34)+(3*BU20/BU34)) -> 0.3127544522 | BT20: I = | BU20: =(BU41*BQ43^3/12+BQ43*BU41*(((BQ43*BU41*BQ43/2+BU48*(BX44-BQ43)*((BX44-BQ43)/2+BQ43))/(BU41*BQ43+(BX44-BQ43)*BU48))-BQ43/2)^2+BU48*(BX44-BQ43)^3/12+BU48*(BX44-BQ43)*(BX44-((BQ43*BU41*BQ43/2+BU48*(BX44-BQ43)*((BX44-BQ43)/2+BQ43))/(BU41*BQ43+(BX44-BQ43)*BU48))-(BX44-BQ43)/2)^2)*10000 -> 127.6666667 | BW20: dm4
P21: =-M19*M34^2/8 -> -15.3125 | R21: =(4*R26/CB25)/((4*R12/CB14)+(4*W20/W34)+(4*R26/CB25)+(3*M20/M34)) -> 0.1855896054 | T21: =W19*W34^2/12 -> 25.3125 | Z21: =-W19*W34^2/12 -> -25.3125 | AB21: =(4*AB26/CB25)/((4*AB12/CB14)+(4*AG20/AG34)+(4*AB26/CB25)+(4*W20/W34)) -> 0.1992584633 | AD21: =AG19*AG34^2/12 -> 30 | AJ21: =-AG19*AG34^2/12 -> -30 | AL21: =(4*AL26/CB25)/((4*AL12/CB14)+(4*AL26/CB25)+(4*AG20/AG34)+(4*AQ20/AQ34)) -> 0.1814407432 | AN21: =AQ19*AQ34^2/12 -> 10.20833333 | AT21: =-AQ19*AQ34^2/12 -> -10.20833333 | AV21: =(4*AV26/CB25)/((4*AV12/CB14)+(4*AV26/CB25)+(4*AQ20/AQ34)+(4*BA20/BA34)) -> 0.1682745043 | AX21: =BA19*BA34^2/12 -> 16.875 | BD21: =-BA19*BA34^2/12 -> -16.875 | BF21: =(4*BF26/CB25)/((4*BF12/CB14)+(4*BF26/CB25)+(4*BA20/BA34)+(4*BK20/BK34)) -> 0.1946958811 | BH21: =BK19*BK34^2/12 -> 37.8125 | BN21: =-BK19*BK34^2/12 -> -37.8125 | BP21: =(4*BP26/CB25)/((4*BP12/CB14)+(4*BP26/CB25)+(4*BK20/BK34)+(3*BU20/BU34)) -> 0.2014616593 | BR21: =BU19*BU34^2/8 -> 17.578125
P22: =-(P21+T21)*Q20 -> -3.08693842 | T22: =-(P21+T21)*S20 -> -3.201269472 | Z22: =+T22/2 -> -1.600634736 | AD22: =+AJ22/2 -> 2.322827914 | AJ22: =-(AJ21+AN21)*AK20 -> 4.645655829 | AN22: =-(AJ21+AN21)*AM20 -> 7.96398142 | AT22: =+AN22/2 -> 3.98199071 | AX22: =+BD22/2 -> -3.515767744 | BD22: =-(BD21+BH21)*BE20 -> -7.031535488 | BH22: =-(BD21+BH21)*BG20 -> -5.753074491 | BN22: =+BH22/2 -> -2.876537245
T23: =+Z23/2 -> -0.9296682511 | Z23: =-(Z21+Z22+AD21+AD22)*AA20 -> -1.859336502 | AD23: =-(Z21+Z22+AD21+AD22)*AC20 -> -1.394502377 | AJ23: =+AD23/2 -> -0.6972511883 | AN23: =+AT23/2 -> -1.330965759 | AT23: =-(AT21+AX21+AT22+AX22)*AU20 -> -2.661931518 | AX23: =-(AT21+AT22+AX21+AX22)*AW20 -> -2.07039118 | BD23: =+AX23/2 -> -1.03519559 | BH23: =+BN23/2 -> 3.285473045 | BN23: =-(BN21+BR21+BN22)*BO20 -> 6.57094609 | BR23: =-(BN21+BR21+BN22)*BQ20 -> 7.228040699
P24: =-T23*Q20 -> 0.2869828642 | R24: dm4 | T24: =-T23*S20 -> 0.2976118591 | Z24: =+T24/2 -> 0.1488059296 | AB24: dm4 | AD24: =+AJ24/2 -> 0.2380395254 | AJ24: =-(AJ23+AN23)*AK20 -> 0.4760790509 | AL24: dm4 | AN24: =-(AJ23+AN23)*AM20 -> 0.8161355158 | AT24: =+AN24/2 -> 0.4080677579 | AV24: dm4 | AX24: =+BD24/2 -> -0.3778604366 | BD24: =-(BD23+BH23)*BE20 -> -0.7557208731 | BF24: dm4 | BH24: =-(BD23+BH23)*BG20 -> -0.618317078 | BN24: =+BH24/2 -> -0.309158539 | BP24: dm4 | CB24: m
T25: =+Z25/2 -> -0.06648028377 | Z25: =-(Z24+AD24)*AA20 -> -0.1329605675 | AD25: =-(Z24+AD24)*AC20 -> -0.09972042566 | AJ25: =+AD25/2 -> -0.04986021283 | AN25: =+AT25/2 -> -0.005636552986 | AT25: =-(AT24+AX24)*AU20 -> -0.01127310597 | AX25: =-(AT24+AX24)*AW20 -> -0.008767971311 | BD25: =+AX25/2 -> -0.004383985655 | BH25: =+BN25/2 -> 0.0439503225 | BN25: =-BN24*BO20 -> 0.087900645 | BR25: =-BN24*BQ20 -> 0.0966907095 | CB25: 3.8
P26: =-T25*Q20 -> 0.02052205421 | R26: =T38*R36^3/12*10000 -> 62.5 | T26: =-T25*S20 -> 0.02128213029 | Z26: =+T26/2 -> 0.01064106515 | AB26: =AD38*AB36^3/12*10000 -> 62.5 | AD26: =+AJ26/2 -> 0.006513318911 | AJ26: =-(AJ25+AN25)*AK20 -> 0.01302663782 | AL26: =AN38*AL36^3/12*10000 -> 62.5 | AN26: =-(AJ25+AN25)*AM20 -> 0.02233137912 | AT26: =+AN26/2 -> 0.01116568956 | AV26: =AX38*AV36^3/12*10000 -> 62.5 | AX26: =+BD26/2 -> -0.006643871085 | BD26: =-(BD25+BH25)*BE20 -> -0.01328774217 | BF26: =BH38*BF36^3/12*10000 -> 62.5 | BH26: =-(BD25+BH25)*BG20 -> -0.01087178905 | BN26: =+BH26/2 -> -0.005435894524 | BP26: =BR38*BP36^3/12*10000 -> 62.5
T27: =+Z27/2 -> -0.00294802047 | Z27: =-(Z26+AD26)*AA20 -> -0.00589604094 | AD27: =-(Z26+AD26)*AC20 -> -0.004422030705 | AJ27: =+AD27/2 -> -0.002211015352 | AN27: =+AT27/2 -> -0.0008437513926 | AT27: =-(AT26+AX26)*AU20 -> -0.001687502785 | AX27: =-(AT26+AX26)*AW20 -> -0.001312502166 | BD27: =+AX27/2 -> -0.0006562510831 | BH27: =+BN27/2 -> 0.0007727728245 | BN27: =-BN26*BO20 -> 0.001545545649 | BR27: =-BN26*BQ20 -> 0.001700100214
P28: =-T27*Q20 -> 0.0009100357651 | T28: =-T27*S20 -> 0.0009437407934 | Z28: =+T28/2 -> 0.0004718703967 | AD28: =+AJ28/2 -> 0.000358519451 | AJ28: =-(AJ27+AN27)*AK20 -> 0.0007170389019 | AN28: =-(AJ27+AN27)*AM20 -> 0.001229209546 | AT28: =+AN28/2 -> 0.0006146047731 | AX28: =+BD28/2 -> -1.956601218e-05 | BD28: =-(BD27+BH27)*BE20 -> -3.913202436e-05 | BH28: =-(BD27+BH27)*BG20 -> -3.201711084e-05 | BN28: =+BH28/2 -> -1.600855542e-05
R29: I = | T29: =+Z29/2 -> -0.0001427044108 | Z29: =-(Z28+AD28)*AA20 -> -0.0002854088215 | AB29: I = | AD29: =-(Z28+AD28)*AC20 -> -0.0002140566161 | AJ29: =+AD29/2 -> -0.0001070283081 | AL29: I = | AN29: =+AT29/2 -> -0.0001110316094 | AT29: =-(AT28+AX28)*AU20 -> -0.0002220632189 | AV29: I = | AX29: =-(AT28+AX28)*AW20 -> -0.0001727158369 | BD29: =+AX29/2 -> -8.635791846e-05 | BF29: I = | BH29: =+BN29/2 -> 2.275794082e-06 | BN29: =-BN28*BO20 -> 4.551588165e-06 | BP29: I = | BR29: =-BN28*BQ20 -> 5.006746981e-06
P30: =-T29*S20 -> 4.568352737e-05 | T30: =-T29*S20 -> 4.568352737e-05 | AJ30: =-(AJ29+AN29)*AK20 -> 5.118474072e-05 | AN30: =-(AJ29+AN29)*AM20 -> 8.774526981e-05 | BD30: =-(BD29+BH29)*BE20 -> 2.823768079e-05 | BH30: =-(BD29+BH29)*BG20 -> 2.310355701e-05
P31: =SUM(P21:Q30) -> -18.09097778 | T31: =SUM(T21:U30) -> 21.43187468 | Z31: =SUM(Z21:AA30) -> -28.75169439 | AD31: =SUM(AD21:AE30) -> 31.06888039 | AJ31: =SUM(AJ21:AK30) -> -25.6138997 | AN31: =SUM(AN21:AO30) -> 17.67454151 | AT31: =SUM(AT21:AU30) -> -8.48160876 | AX31: =SUM(AX21:AY30) -> 10.89406401 | BD31: =SUM(BD21:BE30) -> -25.71587718 | BH31: =SUM(BH21:BI30) -> 34.76042614 | BN31: =SUM(BN21:BO30) -> -34.34325086 | BR31: =SUM(BR21:BS30) -> 24.90456152
M34: 3.5 | O34: m | W34: 4.5 | Y34: m | AG34: 6 | AI34: m | AQ34: 3.5 | AS34: m | BA34: 4.5 | BC34: m | BK34: 5.5 | BM34: m | BU34: 3.75 | BW34: m
C36: mesnet genişliği= | H36: 0.25 | J36: m | R36: 0.5 | T36: m | AB36: 0.5 | AD36: m | AL36: 0.5 | AN36: m | AV36: 0.5 | AX36: m | BF36: 0.5 | BH36: m | BP36: 0.5 | BR36: m | BU36: mesnet genişliği= | BZ36: 0.25 | CB36: m
T37: m | AD37: m | AN37: m | AX37: m | BH37: m | BR37: m
T38: 0.6 | AD38: 0.6 | AN38: 0.6 | AX38: 0.6 | BH38: 0.6 | BR38: 0.6
M41: 1.2 | O41: m | W41: 1.2 | Y41: m | AG41: 1.2 | AI41: m | AQ41: 1.2 | AS41: m | BA41: 1.2 | BC41: m | BK41: 1.2 | BM41: m | BU41: 1.2 | BW41: m
I43: 0.1 | K43: m | P43: m | S43: 0.1 | U43: m | Z43: m | AC43: 0.1 | AE43: m | AJ43: m | AM43: 0.1 | AO43: m | AT43: m | AW43: 0.1 | AY43: m | BD43: m | BG43: 0.1 | BI43: m | BN43: m | BQ43: 0.1 | BS43: m | BX43: m
P44: 0.7 | Z44: 0.7 | AJ44: 0.7 | AT44: 0.7 | BD44: 0.7 | BN44: 0.7 | BX44: 0.7
M48: 0.25 | O48: m | W48: 0.25 | Y48: m | AG48: 0.25 | AI48: m | AQ48: 0.25 | AS48: m | BA48: 0.25 | BC48: m | BK48: 0.25 | BM48: m | BU48: 0.25 | BW48: m
O50: =IF(T12<0,T12/2,"") -> -0.8352238171 | U50: =IF(T12>0,T12/2,"") ->  | Y50: =IF(AD12<0,AD12/2,"") -> -0.5792964995 | AE50: =IF(AD12>0,AD12/2,"") ->  | AI50: =IF(AN12<0,AN12/2,"") ->  | AO50: =IF(AN12>0,AN12/2,"") -> 1.984839549 | AS50: =IF(AX12<0,AX12/2,"") -> -0.603113813 | AY50: =IF(AX12>0,AX12/2,"") ->  | BC50: =IF(BH12<0,BH12/2,"") -> -2.26113724 | BI50: =IF(BH12>0,BH12/2,"") ->  | BM50: =IF(BR10<0,BR10/2,"") ->  | BS50: =IF(BR10>0,BR10/2,"") -> 2.359672335
F55: moment diyagramı (KNm)
S57: =-T31 -> -21.43187468 | AA57: =IF(Z31=0,"",+Z31) -> -28.75169439 | AK57: =IF(AJ31=0,"",+AJ31) -> -25.6138997 | AU57: =+AT31 -> -8.48160876 | BE57: =+BD31 -> -25.71587718 | BO57: =+BN31 -> -34.34325086
AC58: =-AD31 -> -31.06888039 | AM58: =-AN31 -> -17.67454151 | AW58: =IF(AX31=0,"",-AX31) -> -10.89406401 | BG58: =IF(BH31=0,"",-BH31) -> -34.76042614
Q59: =IF(P31=0,"",+P31) -> -18.09097778 | BQ59: =IF(BR31=0,"",-BR31) -> -24.90456152
O61: =IF(T12>0,-T12,"") ->  | U61: =IF(T12<0,-T12,"") -> 1.670447634 | Y61: =IF(AD12>0,-AD12,"") ->  | AE61: =IF(AD12<0,-AD12,"") -> 1.158592999 | AI61: =IF(AN12>0,-AN12,"") -> -3.969679098 | AO61: =IF(AN12<0,-AN12,"") ->  | AS61: =IF(AX12>0,-AX12,"") ->  | AY61: =IF(AX12<0,-AX12,"") -> 1.206227626 | BC61: =IF(BH12>0,-BH12,"") ->  | BI61: =IF(BH12<0,-BH12,"") -> 4.522274481 | BM61: =IF(BR10>0,-BR10,"") -> -4.71934467 | BS61: =IF(BR10<0,-BR10,"") -> 
O62: =IF(O10<0,O10,"") -> -1.670447634 | U62: =IF(O10>0,O10,"") ->  | Y62: =IF(Y12<0,Y12,"") -> -1.158592999 | AE62: =IF(Y12>0,Y12,"") ->  | AI62: =IF(AI12<0,AI12,"") ->  | AO62: =IF(AI12>0,AI12,"") -> 3.969679098 | AS62: =IF(AS12<0,AS12,"") -> -1.206227626 | AY62: =IF(AS12>0,AS12,"") ->  | BC62: =IF(BC12<0,BC12,"") -> -4.522274481 | BI62: =IF(BC12>0,BC12,"") ->  | BM62: =IF(BM12<0,BM12,"") ->  | BS62: =IF(BM12>0,BM12,"") -> 4.71934467
L64: =IF(M115=0,"",+M115) -> 7.602862036 | BV64: =IF(BU115=0,"",+BU115) -> 7.331132009
W66: =+W115 -> 12.9651626 | AG66: =+AG115 -> 16.69993886 | AQ66: =+AQ115 -> 2.579363692 | BA66: =+BA115 -> 7.54996433 | BK66: =+BK115 -> 22.16710327
O73: =IF(O10>0,-O10/2,"") ->  | U73: =IF(O10<0,-O10/2,"") -> 0.8352238171 | Y73: =IF(Y12>0,-Y12/2,"") ->  | AE73: =IF(Y12<0,-Y12/2,"") -> 0.5792964995 | AI73: =IF(AI12>0,-AI12/2,"") -> -1.984839549 | AO73: =IF(AI12<0,-AI12/2,"") ->  | AS73: =IF(AS12>0,-AS12/2,"") ->  | AY73: =IF(AS12<0,-AS12/2,"") -> 0.603113813 | BC73: =IF(BC12>0,-BC12/2,"") ->  | BI73: =IF(BC12<0,-BC12/2,"") -> 2.26113724 | BM73: =IF(BM12>0,-BM12/2,"") -> -2.359672335 | BS73: =IF(BM12<0,-BM12/2,"") -> 
O75: =IF(T12<0,(T12+T12/2)/$CB$14,"") -> -0.659387224 | U75: =IF(T12>0,(T12+T12/2)/$CB$14,"") ->  | Y75: =IF(AD12<0,(AD12+AD12/2)/$CB$14,"") -> -0.4573393417 | AE75: =IF(AD12>0,(AD12+AD12/2)/$CB$14,"") ->  | AI75: =IF(AN12<0,(AN12+AN12/2)/$CB$14,"") ->  | AO75: =IF(AN12>0,(AN12+AN12/2)/$CB$14,"") -> 1.566978591 | AS75: =IF(AX12<0,(AX12+AX12/2)/$CB$14,"") -> -0.476142484 | AY75: =IF(AX12>0,(AX12+AX12/2)/$CB$14,"") ->  | BC75: =IF(BH12<0,(BH12+BH12/2)/$CB$14,"") -> -1.785108348 | BI75: =IF(BH12>0,(BH12+BH12/2)/$CB$14,"") ->  | BM75: =IF(BR10<0,(BR10+BR10/2)/$CB$14,"") ->  | BS75: =IF(BR10>0,(BR10+BR10/2)/$CB$14,"") -> 1.862899212
F80: kesme kuvveti diyagramı (KN)
H83: =+M107 -> 12.33114921 | BQ83: =+BU107 -> 25.3912164
S84: =+W107 -> 32.1233734 | AC84: =+AG107 -> 30.90916345 | AM84: =+AQ107 -> 20.12655221 | AW84: =+BA107 -> 19.20626374 | BG84: =+BK107 -> 41.32585005
O86: =IF(O75<0,O75,"") -> -0.659387224 | U86: =IF(U75>0,U75,"") ->  | Y86: =IF(Y75<0,Y75,"") -> -0.4573393417 | AE86: =IF(AE75>0,AE75,"") ->  | AI86: =IF(AI75<0,AI75,"") ->  | AO86: =IF(AO75>0,AO75,"") -> 1.566978591 | AS86: =IF(AS75<0,AS75,"") -> -0.476142484 | AY86: =IF(AY75>0,AY75,"") ->  | BC86: =IF(BC75<0,BC75,"") -> -1.785108348 | BI86: =IF(BI75>0,BI75,"") ->  | BM86: =IF(BM75<0,BM75,"") ->  | BS86: =IF(BS75>0,BS75,"") -> 1.862899212
O87: =IF(O98<0,O98,"") -> -0.659387224 | U87: =IF(U98>0,U98,"") ->  | Y87: =IF(Y98<0,Y98,"") -> -0.4573393417 | AE87: =IF(AE98>0,AE98,"") ->  | AI87: =IF(AI98<0,AI98,"") ->  | AO87: =IF(AO98>0,AO98,"") -> 1.566978591 | AS87: =IF(AS98<0,AS98,"") -> -0.476142484 | AY87: =IF(AY98>0,AY98,"") ->  | BC87: =IF(BC98<0,BC98,"") -> -1.785108348 | BI87: =IF(BI98>0,BI98,"") ->  | BM87: =IF(BM98<0,BM98,"") ->  | BS87: =IF(BS98>0,BS98,"") -> 1.862899212
Q89: =-M108 -> -22.66885079 | AA89: =-W108 -> -35.3766266 | AK89: =-AG108 -> -29.09083655 | AU89: =-AQ108 -> -14.87344779 | BE89: =-BA108 -> -25.79373626 | BO89: =-BK108 -> -41.17414995
BZ90: =-BU108 -> -12.1087836
J92: x= | K92: =+M114 -> 1.233114921 | M92: m | T92: x= | U92: =+W114 -> 2.141558227 | W92: m | AD92: x= | AE92: =+AG114 -> 3.090916345 | AG92: m | AN92: x= | AO92: =+AQ114 -> 2.012655221 | AQ92: m | AX92: x= | AY92: =+BA114 -> 1.920626374 | BA92: m | BH92: x= | BI92: =+BK114 -> 2.75505667 | BK92: m | BW92: x= | BX92: =+BU34-BU114 -> 1.21087836 | BZ92: m
O98: =IF(O10<0,(O10+O10/2)/$CB$25,"") -> -0.659387224 | U98: =IF(O10>0,(O10+O10/2)/$CB$25,"") ->  | Y98: =IF(Y12<0,(Y12+Y12/2)/$CB$25,"") -> -0.4573393417 | AE98: =IF(Y12>0,(Y12+Y12/2)/$CB$25,"") ->  | AI98: =IF(AI12<0,(AI12+AI12/2)/$CB$25,"") ->  | AO98: =IF(AI12>0,(AI12+AI12/2)/$CB$25,"") -> 1.566978591 | AS98: =IF(AS12<0,(AS12+AS12/2)/$CB$25,"") -> -0.476142484 | AY98: =IF(AS12>0,(AS12+AS12/2)/$CB$25,"") ->  | BC98: =IF(BC12<0,(BC12+BC12/2)/$CB$25,"") -> -1.785108348 | BI98: =IF(BC12>0,(BC12+BC12/2)/$CB$25,"") ->  | BM98: =IF(BM12<0,(BM12+BM12/2)/$CB$25,"") ->  | BS98: =IF(BM12>0,(BM12+BM12/2)/$CB$25,"") -> 1.862899212
C100: kiriş faydalı yükseklik d = h - d' (m) | I100: =P44-Y3 -> 0.67 | S100: =Z44-Y3 -> 0.67 | AC100: =AJ44-Y3 -> 0.67 | AM100: =AT44-Y3 -> 0.67 | AW100: =BD44-Y3 -> 0.67 | BG100: =BN44-Y3 -> 0.67 | BQ100: =BX44-Y3 -> 0.67
I104: yayılı yük = | M104: =+M19 -> 10 | O104: KN/m | S104: yayılı yük = | W104: =+W19 -> 15 | Y104: KN/m | AC104: yayılı yük = | AG104: =+AG19 -> 10 | AI104: KN/m | AM104: yayılı yük = | AQ104: =+AQ19 -> 10 | AS104: KN/m | AW104: yayılı yük = | BA104: =+BA19 -> 10 | BC104: KN/m | BG104: yayılı yük = | BK104: =+BK19 -> 15 | BM104: KN/m | BQ104: yayılı yük = | BU104: =+BU19 -> 10 | BW104: KN/m
I105: sol moment= | M105: 0 | O105: KNm | S105: sol moment= | W105: =+T31 -> 21.43187468 | Y105: KNm | AC105: sol moment= | AG105: =+AD31 -> 31.06888039 | AI105: KNm | AM105: sol moment= | AQ105: =+AN31 -> 17.67454151 | AS105: KNm | AW105: sol moment= | BA105: =+AX31 -> 10.89406401 | BC105: KNm | BG105: sol moment= | BK105: =+BH31 -> 34.76042614 | BM105: KNm | BQ105: sol moment= | BU105: =+BR31 -> 24.90456152 | BW105: KNm
I106: sağ moment= | M106: =-P31 -> 18.09097778 | O106: KNm | S106: sağ moment= | W106: =-Z31 -> 28.75169439 | Y106: KNm | AC106: sağ moment= | AG106: =-AJ31 -> 25.6138997 | AI106: KNm | AM106: sağ moment= | AQ106: =-AT31 -> 8.48160876 | AS106: KNm | AW106: sağ moment= | BA106: =-BD31 -> 25.71587718 | BC106: KNm | BG106: sağ moment= | BK106: =-BN31 -> 34.34325086 | BM106: KNm | BQ106: sağ moment= | BU106: 0 | BW106: KNm
L107: A= | M107: =(M104*M109*M109/2+M105-M106)/M109 -> 12.33114921 | O107: KN | V107: A= | W107: =(W104*W109*W109/2+W105-W106)/W109 -> 32.1233734 | Y107: KN | AF107: A= | AG107: =(AG104*AG109*AG109/2+AG105-AG106)/AG109 -> 30.90916345 | AI107: KN | AP107: A= | AQ107: =(AQ104*AQ109*AQ109/2+AQ105-AQ106)/AQ109 -> 20.12655221 | AS107: KN | AZ107: A= | BA107: =(BA104*BA109*BA109/2+BA105-BA106)/BA109 -> 19.20626374 | BC107: KN | BJ107: A= | BK107: =(BK104*BK109*BK109/2+BK105-BK106)/BK109 -> 41.32585005 | BM107: KN | BT107: A= | BU107: =(BU104*BU109*BU109/2+BU105-BU106)/BU109 -> 25.3912164 | BW107: KN
L108: B= | M108: =M104*M109-M107 -> 22.66885079 | O108: KN | V108: B= | W108: =W104*W109-W107 -> 35.3766266 | Y108: KN | AF108: B= | AG108: =AG104*AG109-AG107 -> 29.09083655 | AI108: KN | AP108: B= | AQ108: =AQ104*AQ109-AQ107 -> 14.87344779 | AS108: KN | AZ108: B= | BA108: =BA104*BA109-BA107 -> 25.79373626 | BC108: KN | BJ108: B= | BK108: =BK104*BK109-BK107 -> 41.17414995 | BM108: KN | BT108: B= | BU108: =BU104*BU109-BU107 -> 12.1087836 | BW108: KN
L109: L= | M109: =+M34 -> 3.5 | O109: m | V109: L= | W109: =+W34 -> 4.5 | Y109: m | AF109: L= | AG109: =+AG34 -> 6 | AI109: m | AP109: L= | AQ109: =+AQ34 -> 3.5 | AS109: m | AZ109: L= | BA109: =+BA34 -> 4.5 | BC109: m | BJ109: L= | BK109: =+BK34 -> 5.5 | BM109: m | BT109: L= | BU109: =+BU34 -> 3.75 | BW109: m
I110: sol mes.gen= | M110: =+H36 -> 0.25 | O110: m | S110: sol mes.gen= | W110: =+R36 -> 0.5 | Y110: m | AC110: sol mes.gen= | AG110: =+AB36 -> 0.5 | AI110: m | AM110: sol mes.gen= | AQ110: =+AL36 -> 0.5 | AS110: m | AW110: sol mes.gen= | BA110: =+AV36 -> 0.5 | BC110: m | BG110: sol mes.gen= | BK110: =+BF36 -> 0.5 | BM110: m | BQ110: sol mes.gen= | BU110: =+BP36 -> 0.5 | BW110: m
I111: sağ mes.gen= | M111: =+R36 -> 0.5 | O111: m | S111: sağ mes.gen= | W111: =+AB36 -> 0.5 | Y111: m | AC111: sağ mes.gen= | AG111: =+AL36 -> 0.5 | AI111: m | AM111: sağ mes.gen= | AQ111: =+AV36 -> 0.5 | AS111: m | AW111: sağ mes.gen= | BA111: =+BF36 -> 0.5 | BC111: m | BG111: sağ mes.gen= | BK111: =+BP36 -> 0.5 | BM111: m | BQ111: sağ mes.gen= | BU111: =+BZ36 -> 0.25 | BW111: m
L112: d= | M112: =+I100 -> 0.67 | O112: m | V112: d= | W112: =+S100 -> 0.67 | Y112: m | AF112: d= | AG112: =+AC100 -> 0.67 | AI112: m | AP112: d= | AQ112: =+AM100 -> 0.67 | AS112: m | AZ112: d= | BA112: =+AW100 -> 0.67 | BC112: m | BJ112: d= | BK112: =+BG100 -> 0.67 | BM112: m | BT112: d= | BU112: =+BQ100 -> 0.67 | BW112: m
L113: h= | M113: =+P44 -> 0.7 | O113: m | V113: h= | W113: =+Z44 -> 0.7 | Y113: m | AF113: h= | AG113: =+AJ44 -> 0.7 | AI113: m | AP113: h= | AQ113: =+AT44 -> 0.7 | AS113: m | AZ113: h= | BA113: =+BD44 -> 0.7 | BC113: m | BJ113: h= | BK113: =+BN44 -> 0.7 | BM113: m | BT113: h= | BU113: =+BX44 -> 0.7 | BW113: m
L114: x= | M114: =((M107*M109)/(M107+M108)) -> 1.233114921 | O114: m | V114: x= | W114: =((W107*W109)/(W107+W108)) -> 2.141558227 | Y114: m | AF114: x= | AG114: =((AG107*AG109)/(AG107+AG108)) -> 3.090916345 | AI114: m | AP114: x= | AQ114: =((AQ107*AQ109)/(AQ107+AQ108)) -> 2.012655221 | AS114: m | AZ114: x= | BA114: =((BA107*BA109)/(BA107+BA108)) -> 1.920626374 | BC114: m | BJ114: x= | BK114: =((BK107*BK109)/(BK107+BK108)) -> 2.75505667 | BM114: m | BT114: x= | BU114: =((BU107*BU109)/(BU107+BU108)) -> 2.53912164 | BW114: m
K115: Maç= | M115: =((((M105-M106)/M109+M104*M109*0.5)^2/(2*M104))-M105) -> 7.602862036 | O115: KNm | U115: Maç= | W115: =((((W105-W106)/W109+W104*W109*0.5)^2/(2*W104))-W105) -> 12.9651626 | Y115: KNm | AE115: Maç= | AG115: =((((AG105-AG106)/AG109+AG104*AG109*0.5)^2/(2*AG104))-AG105) -> 16.69993886 | AI115: KNm | AO115: Maç= | AQ115: =((((AQ105-AQ106)/AQ109+AQ104*AQ109*0.5)^2/(2*AQ104))-AQ105) -> 2.579363692 | AS115: KNm | AY115: Maç= | BA115: =((((BA105-BA106)/BA109+BA104*BA109*0.5)^2/(2*BA104))-BA105) -> 7.54996433 | BC115: KNm | BI115: Maç= | BK115: =((((BK105-BK106)/BK109+BK104*BK109*0.5)^2/(2*BK104))-BK105) -> 22.16710327 | BM115: KNm | BS115: Maç= | BU115: =((((BU105-BU106)/BU109+BU104*BU109*0.5)^2/(2*BU104))-BU105) -> 7.331132009 | BW115: KNm
I116: sol mesnet yüzü kesme kuv. = | M116: =(M107-M104*M110/2) -> 11.08114921 | O116: KN | S116: sol mesnet yüzü kesme kuv. = | W116: =(W107-W104*W110/2) -> 28.3733734 | Y116: KN | AC116: sol mesnet yüzü kesme kuv. = | AG116: =(AG107-AG104*AG110/2) -> 28.40916345 | AI116: KN | AM116: sol mesnet yüzü kesme kuv. = | AQ116: =(AQ107-AQ104*AQ110/2) -> 17.62655221 | AS116: KN | AW116: sol mesnet yüzü kesme kuv. = | BA116: =(BA107-BA104*BA110/2) -> 16.70626374 | BC116: KN | BG116: sol mesnet yüzü kesme kuv. = | BK116: =(BK107-BK104*BK110/2) -> 37.57585005 | BM116: KN | BQ116: sol mesnet yüzü kesme kuv. = | BU116: =(BU107-BU104*BU110/2) -> 22.8912164 | BW116: KN
I117: sol mesnet yüzünden d mesafede kesme kuv. = | M117: =(M107-(M104*(M112+M110/2))) -> 4.381149205 | O117: KN | S117: sol mesnet yüzünden d mesafede kesme kuv. = | W117: =(W107-(W104*(W112+W110/2))) -> 18.3233734 | Y117: KN | AC117: sol mesnet yüzünden d mesafede kesme kuv. = | AG117: =(AG107-(AG104*(AG112+AG110/2))) -> 21.70916345 | AI117: KN | AM117: sol mesnet yüzünden d mesafede kesme kuv. = | AQ117: =(AQ107-(AQ104*(AQ112+AQ110/2))) -> 10.92655221 | AS117: KN | AW117: sol mesnet yüzünden d mesafede kesme kuv. = | BA117: =(BA107-(BA104*(BA112+BA110/2))) -> 10.00626374 | BC117: KN | BG117: sol mesnet yüzünden d mesafede kesme kuv. = | BK117: =(BK107-(BK104*(BK112+BK110/2))) -> 27.52585005 | BM117: KN | BQ117: sol mesnet yüzünden d mesafede kesme kuv. = | BU117: =(BU107-(BU104*(BU112+BU110/2))) -> 16.1912164 | BW117: KN
I118: sol mesnet yüzünden 2*h mesafede kesme kuv. = | M118: =(M107-(M104*(2*M113+M110/2))) -> -2.918850795 | O118: KN | S118: sol mesnet yüzünden 2*h mesafede kesme kuv. = | W118: =(W107-(W104*(2*W113+W110/2))) -> 7.373373398 | Y118: KN | AC118: sol mesnet yüzünden 2*h mesafede kesme kuv. = | AG118: =(AG107-(AG104*(2*AG113+AG110/2))) -> 14.40916345 | AI118: KN | AM118: sol mesnet yüzünden 2*h mesafede kesme kuv. = | AQ118: =(AQ107-(AQ104*(2*AQ113+AQ110/2))) -> 3.626552214 | AS118: KN | AW118: sol mesnet yüzünden 2*h mesafede kesme kuv. = | BA118: =(BA107-(BA104*(2*BA113+BA110/2))) -> 2.70626374 | BC118: KN | BG118: sol mesnet yüzünden 2*h mesafede kesme kuv. = | BK118: =(BK107-(BK104*(2*BK113+BK110/2))) -> 16.57585005 | BM118: KN | BQ118: sol mesnet yüzünden 2*h mesafede kesme kuv. = | BU118: =(BU107-(BU104*(2*BU113+BU110/2))) -> 8.891216404 | BW118: KN
I119: sol mesnet yüzü moment = | M119: =M105-((M107+M116)/2*M110/2) -> -1.463268651 | O119: KNm | S119: sol mesnet yüzü moment = | W119: =W105-((W107+W116)/2*W110/2) -> 13.86978133 | Y119: KNm | AC119: sol mesnet yüzü moment = | AG119: =AG105-((AG107+AG116)/2*AG110/2) -> 23.65408953 | AI119: KNm | AM119: sol mesnet yüzü moment = | AQ119: =AQ105-((AQ107+AQ116)/2*AQ110/2) -> 12.95540346 | AS119: KNm | AW119: sol mesnet yüzü moment = | BA119: =BA105-((BA107+BA116)/2*BA110/2) -> 6.404998077 | BC119: KNm | BG119: sol mesnet yüzü moment = | BK119: =BK105-((BK107+BK116)/2*BK110/2) -> 24.89771363 | BM119: KNm | BQ119: sol mesnet yüzü moment = | BU119: =BU105-((BU107+BU116)/2*BU110/2) -> 18.86925741 | BW119: KNm
I120: sağ mesnet yüzü kesme kuv. = | M120: =(M108-M104*M111/2) -> 20.16885079 | O120: KN | S120: sağ mesnet yüzü kesme kuv. = | W120: =(W108-W104*W111/2) -> 31.6266266 | Y120: KN | AC120: sağ mesnet yüzü kesme kuv. = | AG120: =(AG108-AG104*AG111/2) -> 26.59083655 | AI120: KN | AM120: sağ mesnet yüzü kesme kuv. = | AQ120: =(AQ108-AQ104*AQ111/2) -> 12.37344779 | AS120: KN | AW120: sağ mesnet yüzü kesme kuv. = | BA120: =(BA108-BA104*BA111/2) -> 23.29373626 | BC120: KN | BG120: sağ mesnet yüzü kesme kuv. = | BK120: =(BK108-BK104*BK111/2) -> 37.42414995 | BM120: KN | BQ120: sağ mesnet yüzü kesme kuv. = | BU120: =(BU108-BU104*BU111/2) -> 10.8587836 | BW120: KN
I121: sağ mesnet yüzünden d mesafede kesme kuv. = | M121: =(M108-(M104*(M112+M111/2))) -> 13.46885079 | O121: KN | S121: sağ mesnet yüzünden d mesafede kesme kuv. = | W121: =(W108-(W104*(W112+W111/2))) -> 21.5766266 | Y121: KN | AC121: sağ mesnet yüzünden d mesafede kesme kuv. = | AG121: =(AG108-(AG104*(AG112+AG111/2))) -> 19.89083655 | AI121: KN | AM121: sağ mesnet yüzünden d mesafede kesme kuv. = | AQ121: =(AQ108-(AQ104*(AQ112+AQ111/2))) -> 5.673447786 | AS121: KN | AW121: sağ mesnet yüzünden d mesafede kesme kuv. = | BA121: =(BA108-(BA104*(BA112+BA111/2))) -> 16.59373626 | BC121: KN | BG121: sağ mesnet yüzünden d mesafede kesme kuv. = | BK121: =(BK108-(BK104*(BK112+BK111/2))) -> 27.37414995 | BM121: KN | BQ121: sağ mesnet yüzünden d mesafede kesme kuv. = | BU121: =(BU108-(BU104*(BU112+BU111/2))) -> 4.158783596 | BW121: KN
I122: sağ mesnet yüzünden 2*h mesafede kesme kuv. = | M122: =(M108-(M104*(2*M113+M111/2))) -> 6.168850795 | O122: KN | S122: sağ mesnet yüzünden 2*h mesafede kesme kuv. = | W122: =(W108-(W104*(2*W113+W111/2))) -> 10.6266266 | Y122: KN | AC122: sağ mesnet yüzünden 2*h mesafede kesme kuv. = | AG122: =(AG108-(AG104*(2*AG113+AG111/2))) -> 12.59083655 | AI122: KN | AM122: sağ mesnet yüzünden 2*h mesafede kesme kuv. = | AQ122: =(AQ108-(AQ104*(2*AQ113+AQ111/2))) -> -1.626552214 | AS122: KN | AW122: sağ mesnet yüzünden 2*h mesafede kesme kuv. = | BA122: =(BA108-(BA104*(2*BA113+BA111/2))) -> 9.29373626 | BC122: KN | BG122: sağ mesnet yüzünden 2*h mesafede kesme kuv. = | BK122: =(BK108-(BK104*(2*BK113+BK111/2))) -> 16.42414995 | BM122: KN | BQ122: sağ mesnet yüzünden 2*h mesafede kesme kuv. = | BU122: =(BU108-(BU104*(2*BU113+BU111/2))) -> -3.141216404 | BW122: KN
I123: sağ mesnet yüzü moment = | M123: =M106-((M108+M120)/2*M111/2) -> 12.73626508 | O123: KNm | S123: sağ mesnet yüzü moment = | W123: =W106-((W108+W120)/2*W111/2) -> 20.37628774 | Y123: KNm | AC123: sağ mesnet yüzü moment = | AG123: =AG106-((AG108+AG120)/2*AG111/2) -> 18.65369057 | AI123: KNm | AM123: sağ mesnet yüzü moment = | AQ123: =AQ106-((AQ108+AQ120)/2*AQ111/2) -> 5.075746814 | AS123: KNm | AW123: sağ mesnet yüzü moment = | BA123: =BA106-((BA108+BA120)/2*BA111/2) -> 19.57994312 | BC123: KNm | BG123: sağ mesnet yüzü moment = | BK123: =BK106-((BK108+BK120)/2*BK111/2) -> 24.51846337 | BM123: KNm | BQ123: sağ mesnet yüzü moment = | BU123: =BU106-((BU108+BU120)/2*BU111/2) -> -1.435472949 | BW123: KNm
C124: kiriş kolon yüzünden d mesafede kesme kuvveti (KN) | I124: --- | O124: =+M121 -> 13.46885079 | S124: =+W117 -> 18.3233734 | Y124: =+W121 -> 21.5766266 | AC124: =+AG117 -> 21.70916345 | AI124: =+AG121 -> 19.89083655 | AM124: =+AQ117 -> 10.92655221 | AS124: =+AQ121 -> 5.673447786 | AW124: =+BA117 -> 10.00626374 | BC124: =+BA121 -> 16.59373626 | BG124: =+BK117 -> 27.52585005 | BM124: =+BK121 -> 27.37414995 | BQ124: =+BU117 -> 16.1912164 | BW124: ---
C129: kiriş kolon yüzünden 2*h mesafede kesme kuvveti (KN) | I129: =+M118 -> -2.918850795 | O129: =+M122 -> 6.168850795 | S129: =+W118 -> 7.373373398 | Y129: =+W122 -> 10.6266266 | AC129: =+AG118 -> 14.40916345 | AI129: =+AG122 -> 12.59083655 | AM129: =+AQ118 -> 3.626552214 | AS129: =+AQ122 -> -1.626552214 | AW129: =+BA118 -> 2.70626374 | BC129: =+BA122 -> 9.29373626 | BG129: =+BK118 -> 16.57585005 | BM129: =+BK122 -> 16.42414995 | BQ129: =+BU118 -> 8.891216404 | BW129: =+BU122 -> -3.141216404
C134: kiriş kolon yüzü kesme kuvveti (KN) | I134: =+M116 -> 11.08114921 | O134: =+M120 -> 20.16885079 | S134: =+W116 -> 28.3733734 | Y134: =+W120 -> 31.6266266 | AC134: =+AG116 -> 28.40916345 | AI134: =+AG120 -> 26.59083655 | AM134: =+AQ116 -> 17.62655221 | AS134: =+AQ120 -> 12.37344779 | AW134: =+BA116 -> 16.70626374 | BC134: =+BA120 -> 23.29373626 | BG134: =+BK116 -> 37.57585005 | BM134: =+BK120 -> 37.42414995 | BQ134: =+BU116 -> 22.8912164 | BW134: =+BU120 -> 10.8587836
C137: kiriş kolon yüzü moment (KNm) | I137: =+M119 -> -1.463268651 | O137: =+M123 -> 12.73626508 | S137: =+W119 -> 13.86978133 | Y137: =+W123 -> 20.37628774 | AC137: =+AG119 -> 23.65408953 | AI137: =+AG123 -> 18.65369057 | AM137: =+AQ119 -> 12.95540346 | AS137: =+AQ123 -> 5.075746814 | AW137: =+BA119 -> 6.404998077 | BC137: =+BA123 -> 19.57994312 | BG137: =+BK119 -> 24.89771363 | BM137: =+BK123 -> 24.51846337 | BQ137: =+BU119 -> 18.86925741 | BW137: =+BU123 -> -1.435472949
